Publisher Label,Publisher URI,"Supplier","Invoice ","Amount (£)","Purpose","Transaction Number","Payment Date","Organisational Unit","Cost Centre(T)","Internal category number"
"Wolverhampton City Council","http://opendatacommunities.org/id/metropolitan-district-council/wolverhampton","Eden Support Limited","09-10-1620161025","137.2","TPP - Day Care","190279695","26/10/2016","Learning Disability Assessment & Care Management","LD Care Purchasing (Spot Placements)","R5430"
"Wolverhampton City Council","http://opendatacommunities.org/id/metropolitan-district-council/wolverhampton","Eden Support Limited","09-10-1620161025","82.32","TPP - Day Care","190279695","26/10/2016","Learning Disability Assessment & Care Management","LD Care Purchasing (Spot Placements)","R5430"
"Wolverhampton City Council","http://opendatacommunities.org/id/metropolitan-district-council/wolverhampton","Eden Support Limited","09-10-1620161025","200","TPP - Day Care","190279695","26/10/2016","Learning Disability Assessment & Care Management","LD Care Purchasing (Spot Placements)","R5430"
"Wolverhampton City Council","http://opendatacommunities.org/id/metropolitan-district-council/wolverhampton","Eden Support Limited","09-10-1620161025","240.1","TPP - Day Care","190279695","26/10/2016","Learning Disability Assessment & Care Management","LD Care Purchasing (Spot Placements)","R5430"
"Wolverhampton City Council","http://opendatacommunities.org/id/metropolitan-district-council/wolverhampton","Eden Support Limited","25-09-1620161025","250","TPP - Home Care","190279699","26/10/2016","Learning Disability Assessment & Care Management","LD Care Purchasing (Spot Placements)","R5420"
"Wolverhampton City Council","http://opendatacommunities.org/id/metropolitan-district-council/wolverhampton","Eden Support Limited","25-09-1620161025","281.26","TPP - Home Care","190279699","26/10/2016","Learning Disability Assessment & Care Management","LD Care Purchasing (Spot Placements)","R5420"
"Wolverhampton City Council","http://opendatacommunities.org/id/metropolitan-district-council/wolverhampton","Eden Support Limited","25-09-1620161025","273","TPP - Home Care","190279699","26/10/2016","Learning Disability Assessment & Care Management","LD Care Purchasing (Spot Placements)","R5420"
"Wolverhampton City Council","http://opendatacommunities.org/id/metropolitan-district-council/wolverhampton","Eden Support Limited","25-09-1620161025","266","TPP - Home Care","190279699","26/10/2016","Learning Disability Assessment & Care Management","LD Care Purchasing (Spot Placements)","R5420"
"Wolverhampton City Council","http://opendatacommunities.org/id/metropolitan-district-council/wolverhampton","Eden Support Limited","25-09-1620161025","137.2","TPP - Home Care","190279699","26/10/2016","Learning Disability Assessment & Care Management","LD Care Purchasing (Spot Placements)","R5420"
"Wolverhampton City Council","http://opendatacommunities.org/id/metropolitan-district-council/wolverhampton","Eden Support Limited","25-09-1620161025","123.48","TPP - Home Care","190279699","26/10/2016","Learning Disability Assessment & Care Management","LD Care Purchasing (Spot Placements)","R5420"
"Wolverhampton City Council","http://opendatacommunities.org/id/metropolitan-district-council/wolverhampton","Eden Support Limited","25-09-1620161025","41.16","TPP - Home Care","190279699","26/10/2016","Learning Disability Assessment & Care Management","LD Care Purchasing (Spot Placements)","R5420"
"Wolverhampton City Council","http://opendatacommunities.org/id/metropolitan-district-council/wolverhampton","Eden Support Limited","25-09-1620161025","96.04","TPP - Home Care","190279699","26/10/2016","Learning Disability Assessment & Care Management","LD Care Purchasing (Spot Placements)","R5420"
"Wolverhampton City Council","http://opendatacommunities.org/id/metropolitan-district-council/wolverhampton","Edexcel  (Was Edexcel Limited)","060883 - Z1607","121.5","Exam Expenses (Non-Employee)","130139546","12/10/2016","Adult Education","Foundation Studies Delivery Area","R4630"
"Wolverhampton City Council","http://opendatacommunities.org/id/metropolitan-district-council/wolverhampton","Edf Energy Customers PLC","671078286070_15-07-16","2,870.41","Electricity","190274346","12/10/2016","Corporate Asset Management","Central Utilities to Recharge","R2100"
"Wolverhampton City Council","http://opendatacommunities.org/id/metropolitan-district-council/wolverhampton","Edf Energy Customers PLC","671078287448_04-10-16","1,467.57","Electricity","190276255","19/10/2016","Corporate Asset Management","Central Utilities to Recharge","R2100"
"Wolverhampton City Council","http://opendatacommunities.org/id/metropolitan-district-council/wolverhampton","Edf Energy Customers PLC","671078286070_04-10-16","829.95","Electricity","190276256","19/10/2016","Corporate Asset Management","Central Utilities to Recharge","R2100"
"Wolverhampton City Council","http://opendatacommunities.org/id/metropolitan-district-council/wolverhampton","Edf Energy Customers PLC","671078288939_04-10-16","1,023.58","Electricity","190276254","19/10/2016","Corporate Asset Management","Central Utilities to Recharge","R2100"
"Wolverhampton City Council","http://opendatacommunities.org/id/metropolitan-district-council/wolverhampton","Edf Energy Customers PLC","671078336555_04-10-16","918.31","Electricity","190276258","19/10/2016","Corporate Asset Management","Central Utilities to Recharge","R2100"
"Wolverhampton City Council","http://opendatacommunities.org/id/metropolitan-district-council/wolverhampton","Edf Energy Customers PLC","671078287622_04-10-16","2,005.66","Electricity","190276257","19/10/2016","Corporate Asset Management","Central Utilities to Recharge","R2100"
"Wolverhampton City Council","http://opendatacommunities.org/id/metropolitan-district-council/wolverhampton","Edf Energy Customers PLC","671078287486_04-10-16","2,450.23","Electricity","190276253","19/10/2016","Corporate Asset Management","Central Utilities to Recharge","R2100"
"Wolverhampton City Council","http://opendatacommunities.org/id/metropolitan-district-council/wolverhampton","Edmundson Electrical Limited","230-266516","17.34","Equipment - Purchase","190273394","07/10/2016","Fleet Services","Fleet Management","R4000"
"Wolverhampton City Council","http://opendatacommunities.org/id/metropolitan-district-council/wolverhampton","Edmundson Electrical Limited","019 - 621062","231.08","Materials","130139805","26/10/2016","Facilities Management","Civic Centre","R4007"
"Wolverhampton City Council","http://opendatacommunities.org/id/metropolitan-district-council/wolverhampton","Edmundson Electrical Limited","019 - 616924","29.9","Materials","130139523","12/10/2016","Facilities Management","Civic Centre","R4007"
"Wolverhampton City Council","http://opendatacommunities.org/id/metropolitan-district-council/wolverhampton","Edmundson Electrical Limited","019 - 618289","214.41","Materials","130139524","12/10/2016","Facilities Management","Civic Centre","R4007"
"Wolverhampton City Council","http://opendatacommunities.org/id/metropolitan-district-council/wolverhampton","Edmundson Electrical Limited","019 - 620357","26.09","Materials","130140749","21/10/2016","Facilities Management","Civic Centre","R4007"
"Wolverhampton City Council","http://opendatacommunities.org/id/metropolitan-district-council/wolverhampton","Edmundson Electrical Limited","019 - 618866","67.08","Materials","130139525","14/10/2016","Facilities Management","Civic Centre","R4007"
"Wolverhampton City Council","http://opendatacommunities.org/id/metropolitan-district-council/wolverhampton","Edmundson Electrical Limited","019 - 619978","122.41","Materials","130139527","14/10/2016","Facilities Management","Civic Centre","R4007"
"Wolverhampton City Council","http://opendatacommunities.org/id/metropolitan-district-council/wolverhampton","Edmundson Electrical Limited","019 - 619738","42.5","Materials","130139526","14/10/2016","Facilities Management","Civic Centre","R4007"
"Wolverhampton City Council","http://opendatacommunities.org/id/metropolitan-district-council/wolverhampton","Electoral Reform Services Limited","ERS1501679","1,870.14","Computing - Purchase of Software","130139963","12/10/2016","Democratic Services","Electoral Registration","R4531"
"Wolverhampton City Council","http://opendatacommunities.org/id/metropolitan-district-council/wolverhampton","Electoral Reform Services Limited","ERS1501679","-1,870.14","Computing - Purchase of Software","130139963","12/10/2016","Democratic Services","Electoral Registration","R4531"
"Wolverhampton City Council","http://opendatacommunities.org/id/metropolitan-district-council/wolverhampton","Electoral Reform Services Limited","ERS1501679","1,680.46","Computing - Purchase of Software","130139963","12/10/2016","Democratic Services","Electoral Registration","R4531"
"Wolverhampton City Council","http://opendatacommunities.org/id/metropolitan-district-council/wolverhampton","Electoral Reform Services Limited","ERS1501679","189.68","Computing - Purchase of Software","130139963","12/10/2016","Democratic Services","Electoral Registration","R4531"
"Wolverhampton City Council","http://opendatacommunities.org/id/metropolitan-district-council/wolverhampton","Electronic Temperature Instrumnt Limited","10000594057","648","Equipment - Purchase","130131770","07/10/2016","Catering","Education Catering - General Overheads","R4000"
"Wolverhampton City Council","http://opendatacommunities.org/id/metropolitan-district-council/wolverhampton","Veriserv Limited","94925","279.07","R&M - Departmental planned (external)","130138711","05/10/2016","Maintenance Programme","Centralised R&M","R2001"
"Wolverhampton City Council","http://opendatacommunities.org/id/metropolitan-district-council/wolverhampton","Veriserv Limited","94767","1,093.86","R&M - Departmental planned (external)","130138224","21/10/2016","Maintenance Programme","Centralised R&M","R2001"
"Wolverhampton City Council","http://opendatacommunities.org/id/metropolitan-district-council/wolverhampton","Veriserv Limited","95120","244.85","R&M - Departmental planned (external)","130141457","21/10/2016","Maintenance Programme","Centralised R&M","R2001"
"Wolverhampton City Council","http://opendatacommunities.org/id/metropolitan-district-council/wolverhampton","Veriserv Limited","94963","-546.93","R&M - Departmental planned (external)","130139001","21/10/2016","Maintenance Programme","Centralised R&M","R2001"
"Wolverhampton City Council","http://opendatacommunities.org/id/metropolitan-district-council/wolverhampton","Veriserv Limited","95119","24.5","R&M - Departmental planned (external)","130141049","14/10/2016","Maintenance Programme","Centralised R&M","R2001"
"Wolverhampton City Council","http://opendatacommunities.org/id/metropolitan-district-council/wolverhampton","Elliott Group Limited","14738446","73.39","R&M - Departmental planned (external)","130137238","12/10/2016","Early Intervention","HOS Early Intervention","R2001"
"Wolverhampton City Council","http://opendatacommunities.org/id/metropolitan-district-council/wolverhampton","Elliott Group Limited","14713460","316","R&M - Departmental planned (external)","130134442","12/10/2016","Early Intervention","HOS Early Intervention","R2001"
"Wolverhampton City Council","http://opendatacommunities.org/id/metropolitan-district-council/wolverhampton","Elliott Group Limited","14760366","158.4","Hire of Plant","130138324","12/10/2016","Environmental Maintenance","Ground Maintenance West","R3201"
"Wolverhampton City Council","http://opendatacommunities.org/id/metropolitan-district-council/wolverhampton","Elliott Group Limited","14766399","73.39","R&M - Departmental planned (external)","130139555","19/10/2016","Early Intervention","HOS Early Intervention","R2001"
"Wolverhampton City Council","http://opendatacommunities.org/id/metropolitan-district-council/wolverhampton","E-Manage Limited","2253","5,500.00","Intangible Assets / Computer Software","130140882","19/10/2016","","Building Schools for Future ICT Infrastructure","C4005"
"Wolverhampton City Council","http://opendatacommunities.org/id/metropolitan-district-council/wolverhampton","E-Manage Limited","2271","306.87","Computing - Maint Agreements","130141559","19/10/2016","ICTS","Strategic ICTS (ICT Service Budget)","R4534"
"Wolverhampton City Council","http://opendatacommunities.org/id/metropolitan-district-council/wolverhampton","E-Manage Limited","2269","1,100.00","Computing - Maint Agreements","130141558","19/10/2016","ICTS","Strategic ICTS (ICT Service Budget)","R4534"
"Wolverhampton City Council","http://opendatacommunities.org/id/metropolitan-district-council/wolverhampton","Enable Technology Training Limited","6190","710","Training Expenses","130140085","12/10/2016","Intelligence & Evidence","Information and Intelligence","R1650"
"Wolverhampton City Council","http://opendatacommunities.org/id/metropolitan-district-council/wolverhampton","Enderley Consulting Limited","1334","550","Services - Consultants","130140497","21/10/2016","Legal Services","Legal Services","R4404"
"Wolverhampton City Council","http://opendatacommunities.org/id/metropolitan-district-council/wolverhampton","Enterprise Managed Services Limited","90548368","60","TPP - Waste Disposal","130137772","07/10/2016","Cleaning","Priory Green","R5003"
"Wolverhampton City Council","http://opendatacommunities.org/id/metropolitan-district-council/wolverhampton","Enterprise Managed Services Limited","90517926","734.76","TPP - Waste Disposal","130121712","07/10/2016","Visitor Economy","Bantock House Museum","R5003"
"Wolverhampton City Council","http://opendatacommunities.org/id/metropolitan-district-council/wolverhampton","Enterprise Managed Services Limited","90517926","475.28","TPP - Waste Disposal","130121712","07/10/2016","Visitor Economy","Bantock - Tea Rooms","R5003"
"Wolverhampton City Council","http://opendatacommunities.org/id/metropolitan-district-council/wolverhampton","Enterprise Managed Services Limited","90548379","100","R&M - Departmental planned (external)","130137773","07/10/2016","Bereavement Services","Cemeteries","R2001"
"Wolverhampton City Council","http://opendatacommunities.org/id/metropolitan-district-council/wolverhampton","Enterprise Managed Services Limited","90551448","4,139.20","Refuse Collection","130139377","26/10/2016","Visitor Economy","Civic Halls Non-Direct Event Management Account","R2704"
"Wolverhampton City Council","http://opendatacommunities.org/id/metropolitan-district-council/wolverhampton","Enterprise Managed Services Limited","90550556","18.28","Refuse Collection","130138999","26/10/2016","Early Intervention","EIP Locality 3","R2704"
"Wolverhampton City Council","http://opendatacommunities.org/id/metropolitan-district-council/wolverhampton","Enterprise Managed Services Limited","90551676","18,388.04","TPP - Waste Disposal","130139665","26/10/2016","Waste and Recycling Service","Waste Disposal - General","R5003"
"Wolverhampton City Council","http://opendatacommunities.org/id/metropolitan-district-council/wolverhampton","Enterprise Managed Services Limited","90529567","318.96","TPP - Waste Disposal","130127950","12/10/2016","Visitor Economy","Northicote Farm","R5003"
"Wolverhampton City Council","http://opendatacommunities.org/id/metropolitan-district-council/wolverhampton","Enterprise Managed Services Limited","90504120","274.76","TPP - Waste Disposal","130129387","12/10/2016","Learning Disability Provider","Windmill Lane - Respite Home","R5003"
"Wolverhampton City Council","http://opendatacommunities.org/id/metropolitan-district-council/wolverhampton","Enterprise Managed Services Limited","90552075","411.3","TPP - Waste Disposal","130139792","28/10/2016","Markets","Wednesfield Street Market","R5003"
"Wolverhampton City Council","http://opendatacommunities.org/id/metropolitan-district-council/wolverhampton","Enterprise Managed Services Limited","90552074","1,151.64","TPP - Waste Disposal","130139791","28/10/2016","Markets","Bilston Market and Licensed Operations","R5003"
"Wolverhampton City Council","http://opendatacommunities.org/id/metropolitan-district-council/wolverhampton","Enterprise Managed Services Limited","90552353","690,830.00","TPP - Waste Disposal","130139940","28/10/2016","Waste and Recycling Service","Waste Collection and Recycling Service - General","R5003"
"Wolverhampton City Council","http://opendatacommunities.org/id/metropolitan-district-council/wolverhampton","Enterprise Managed Services Limited","90552061","4,670.13","TPP - Waste Disposal","130139939","28/10/2016","Waste and Recycling Service","Waste Collection and Recycling Service - General","R5003"
"Wolverhampton City Council","http://opendatacommunities.org/id/metropolitan-district-council/wolverhampton","Enterprise Managed Services Limited","90550115","272.96","TPP - Waste Disposal","130138632","21/10/2016","Facilities Management","Management of Vacant Properties","R5003"
"Wolverhampton City Council","http://opendatacommunities.org/id/metropolitan-district-council/wolverhampton","Enterprise Managed Services Limited","90549075","5,036.24","TPP - Waste Disposal","130139213","14/10/2016","Environmental Maintenance","Ground Maintenance West","R5003"
"Wolverhampton City Council","http://opendatacommunities.org/id/metropolitan-district-council/wolverhampton","Enterprise Managed Services Limited","90549079","6,634.24","TPP - Waste Disposal","130138300","14/10/2016","Markets","Wholesale Market Facilities Management","R5003"
"Wolverhampton City Council","http://opendatacommunities.org/id/metropolitan-district-council/wolverhampton","Enterprise Managed Services Limited","90549081","879.57","TPP - Waste Disposal","130138301","14/10/2016","Facilities Management","Civic Centre","R5003"
"Wolverhampton City Council","http://opendatacommunities.org/id/metropolitan-district-council/wolverhampton","Enterprise Managed Services Limited","90549082","238","TPP - Waste Disposal","130138302","14/10/2016","Facilities Management","Civic Centre","R5003"
"Wolverhampton City Council","http://opendatacommunities.org/id/metropolitan-district-council/wolverhampton","Enterprise Managed Services Limited","90549083","219","TPP - Waste Disposal","130138303","14/10/2016","Facilities Management","Civic Centre","R5003"
"Wolverhampton City Council","http://opendatacommunities.org/id/metropolitan-district-council/wolverhampton","Enterprise Managed Services Limited","90549077","1,629.90","TPP - Waste Disposal","130138469","14/10/2016","Markets","Bilston Market and Licensed Operations","R5003"
"Wolverhampton City Council","http://opendatacommunities.org/id/metropolitan-district-council/wolverhampton","Enterprise Managed Services Limited","90549084","2,198.00","TPP - Waste Disposal","130138304","14/10/2016","Markets","Wolverhampton Indoor and Open Market","R5003"
"Wolverhampton City Council","http://opendatacommunities.org/id/metropolitan-district-council/wolverhampton","Enterprise Managed Services Limited","90533911","750","TPP - Waste Disposal","130130716","14/10/2016","Maintenance Programme","Centralised R&M","R5003"
"Wolverhampton City Council","http://opendatacommunities.org/id/metropolitan-district-council/wolverhampton","Entrust Social Care Limited","40497","1,442.77","Agency Staff","130138676","05/10/2016","Safeguarding","Head of Service Quality and Safeguarding","R1100"
"Wolverhampton City Council","http://opendatacommunities.org/id/metropolitan-district-council/wolverhampton","Entrust Social Care Limited","40564","646.37","Agency Staff","130139879","07/10/2016","Child Protection","CIN/CP Social Work Unit - Area 7","R1100"
"Wolverhampton City Council","http://opendatacommunities.org/id/metropolitan-district-council/wolverhampton","Entrust Social Care Limited","40564","646.37","Agency Staff","130139879","07/10/2016","Child Protection","CIN/CP Social Work Unit - Area 8","R1100"
"Wolverhampton City Council","http://opendatacommunities.org/id/metropolitan-district-council/wolverhampton","Entrust Social Care Limited","40643","1,406.00","Agency Staff","130141624","26/10/2016","Safeguarding","Head of Service Quality and Safeguarding","R1100"
"Wolverhampton City Council","http://opendatacommunities.org/id/metropolitan-district-council/wolverhampton","Entrust Social Care Limited","40655","643.22","Agency Staff","130141625","26/10/2016","Child Protection","CIN/CP Social Work Unit - Area 7","R1100"
"Wolverhampton City Council","http://opendatacommunities.org/id/metropolitan-district-council/wolverhampton","Entrust Social Care Limited","40655","643.22","Agency Staff","130141625","26/10/2016","Child Protection","CIN/CP Social Work Unit - Area 8","R1100"
"Wolverhampton City Council","http://opendatacommunities.org/id/metropolitan-district-council/wolverhampton","Entrust Social Care Limited","40593","629","Agency Staff","130140529","14/10/2016","Child Protection","CIN/CP Social Work Unit - Area 7","R1100"
"Wolverhampton City Council","http://opendatacommunities.org/id/metropolitan-district-council/wolverhampton","Entrust Social Care Limited","40593","629","Agency Staff","130140529","14/10/2016","Child Protection","CIN/CP Social Work Unit - Area 8","R1100"
"Wolverhampton City Council","http://opendatacommunities.org/id/metropolitan-district-council/wolverhampton","Enviro Technology Services PLC","22665","1,809.69","Services - Professional Fees","130139335","26/10/2016","Public Protection","Air Quality and Noise","R4400"
"Wolverhampton City Council","http://opendatacommunities.org/id/metropolitan-district-council/wolverhampton","Environmental Solutions Midlands Limited","2667","13,970.00","R&M - Departmental planned (external)","130137395","12/10/2016","Corporate Asset Management","Site Development Asset Management","R2001"
"Wolverhampton City Council","http://opendatacommunities.org/id/metropolitan-district-council/wolverhampton","Environmental Waste Controls Limited","812065","827.53","Equipment - Hire","130121006","26/10/2016","Markets","Bilston Market and Licensed Operations","R4001"
"Wolverhampton City Council","http://opendatacommunities.org/id/metropolitan-district-council/wolverhampton","Epos Group","INV051152","300","Computing - Purchase of Hardware","130141067","19/10/2016","Adult Education","Foyer Building","R4530"
"Wolverhampton City Council","http://opendatacommunities.org/id/metropolitan-district-council/wolverhampton","Esendex Limited","14658053","13.82","Comms - Mobile Telephones","130139554","26/10/2016","Democratic Services","Electoral Registration","R4507"
"Wolverhampton City Council","http://opendatacommunities.org/id/metropolitan-district-council/wolverhampton","Euro Food Brands Limited","IN00600593","232.35","Provisions (Resale)","130139748","26/10/2016","Visitor Economy","Bantock - Tea Rooms","R4102"
"Wolverhampton City Council","http://opendatacommunities.org/id/metropolitan-district-council/wolverhampton","Euro Food Brands Limited","IN00600593","-232.35","Provisions (Resale)","130139748","26/10/2016","Visitor Economy","Bantock - Tea Rooms","R4102"
"Wolverhampton City Council","http://opendatacommunities.org/id/metropolitan-district-council/wolverhampton","Euro Food Brands Limited","IN00600593","5","Provisions (Resale)","130139748","26/10/2016","Visitor Economy","Bantock - Tea Rooms","R4102"
"Wolverhampton City Council","http://opendatacommunities.org/id/metropolitan-district-council/wolverhampton","Euro Food Brands Limited","IN00600593","227.35","Provisions (Resale)","130139748","26/10/2016","Visitor Economy","Bantock - Tea Rooms","R4102"
"Wolverhampton City Council","http://opendatacommunities.org/id/metropolitan-district-council/wolverhampton","Euro Food Brands Limited","IN00597856","190.35","Provisions (Resale)","130138428","14/10/2016","Visitor Economy","Bantock - Tea Rooms","R4102"
"Wolverhampton City Council","http://opendatacommunities.org/id/metropolitan-district-council/wolverhampton","Evac+Chair International Limited","INV092548","200","Equipment - R & M","130140581","12/10/2016","Library Services","Wednesfield Library","R4003"
"Wolverhampton City Council","http://opendatacommunities.org/id/metropolitan-district-council/wolverhampton","Evans Halshaw Ford","854059","16.74","Equipment - Purchase","190272275","05/10/2016","Fleet Services","Fleet Management","R4000"
"Wolverhampton City Council","http://opendatacommunities.org/id/metropolitan-district-council/wolverhampton","Evans Halshaw Ford","854059","16.74","Equipment - Purchase","190272275","05/10/2016","Fleet Services","Fleet Management","R4000"
"Wolverhampton City Council","http://opendatacommunities.org/id/metropolitan-district-council/wolverhampton","Evans Halshaw Ford","853642","73.54","Equipment - Purchase","190272274","05/10/2016","Fleet Services","Fleet Management","R4000"
"Wolverhampton City Council","http://opendatacommunities.org/id/metropolitan-district-council/wolverhampton","Evans Halshaw Ford","853642","1.45","Equipment - Purchase","190272274","05/10/2016","Fleet Services","Fleet Management","R4000"
"Wolverhampton City Council","http://opendatacommunities.org/id/metropolitan-district-council/wolverhampton","Evans Halshaw Ford","854059","4.34","Equipment - Purchase","190272275","05/10/2016","Fleet Services","Fleet Management","R4000"
"Wolverhampton City Council","http://opendatacommunities.org/id/metropolitan-district-council/wolverhampton","Evans Halshaw Ford","854059","4.25","Equipment - Purchase","190272275","05/10/2016","Fleet Services","Fleet Management","R4000"
"Wolverhampton City Council","http://opendatacommunities.org/id/metropolitan-district-council/wolverhampton","Evans Halshaw Ford","854376","11.92","Equipment - Purchase","190273403","07/10/2016","Fleet Services","Fleet Management","R4000"
"Wolverhampton City Council","http://opendatacommunities.org/id/metropolitan-district-council/wolverhampton","Evans Halshaw Ford","854193","42.97","Equipment - Purchase","190273402","07/10/2016","Fleet Services","Fleet Management","R4000"
"Wolverhampton City Council","http://opendatacommunities.org/id/metropolitan-district-council/wolverhampton","Evans Halshaw Ford","854777","1.16","Equipment - Purchase","190273407","07/10/2016","Fleet Services","Fleet Management","R4000"
"Wolverhampton City Council","http://opendatacommunities.org/id/metropolitan-district-council/wolverhampton","Evans Halshaw Ford","854777","13.59","Equipment - Purchase","190273407","07/10/2016","Fleet Services","Fleet Management","R4000"
"Wolverhampton City Council","http://opendatacommunities.org/id/metropolitan-district-council/wolverhampton","Evans Halshaw Ford","854777","44.29","Equipment - Purchase","190273407","07/10/2016","Fleet Services","Fleet Management","R4000"
"Wolverhampton City Council","http://opendatacommunities.org/id/metropolitan-district-council/wolverhampton","Evans Halshaw Ford","854777","44.29","Equipment - Purchase","190273407","07/10/2016","Fleet Services","Fleet Management","R4000"
"Wolverhampton City Council","http://opendatacommunities.org/id/metropolitan-district-council/wolverhampton","Evans Halshaw Ford","854508","9.42","Equipment - Purchase","190273405","07/10/2016","Fleet Services","Fleet Management","R4000"
"Wolverhampton City Council","http://opendatacommunities.org/id/metropolitan-district-council/wolverhampton","Evans Halshaw Ford","854508","27.33","Equipment - Purchase","190273405","07/10/2016","Fleet Services","Fleet Management","R4000"
"Wolverhampton City Council","http://opendatacommunities.org/id/metropolitan-district-council/wolverhampton","Evans Halshaw Ford","854535","-11.92","Equipment - Purchase","190273406","07/10/2016","Fleet Services","Fleet Management","R4000"
"Wolverhampton City Council","http://opendatacommunities.org/id/metropolitan-district-council/wolverhampton","Evans Halshaw Ford","854421","28.44","Equipment - Purchase","190273404","07/10/2016","Fleet Services","Fleet Management","R4000"
"Wolverhampton City Council","http://opendatacommunities.org/id/metropolitan-district-council/wolverhampton","Evans Halshaw Ford","855152","1.16","Equipment - Purchase","190273411","07/10/2016","Fleet Services","Fleet Management","R4000"
"Wolverhampton City Council","http://opendatacommunities.org/id/metropolitan-district-council/wolverhampton","Evans Halshaw Ford","855903","0.78","Equipment - Purchase","190273412","07/10/2016","Fleet Services","Fleet Management","R4000"
"Wolverhampton City Council","http://opendatacommunities.org/id/metropolitan-district-council/wolverhampton","Evans Halshaw Ford","855033","206.36","Equipment - Purchase","190273410","07/10/2016","Fleet Services","Fleet Management","R4000"
"Wolverhampton City Council","http://opendatacommunities.org/id/metropolitan-district-council/wolverhampton","Evans Halshaw Ford","854939","12.94","Equipment - Purchase","190273409","07/10/2016","Fleet Services","Fleet Management","R4000"
"Wolverhampton City Council","http://opendatacommunities.org/id/metropolitan-district-council/wolverhampton","Evans Halshaw Ford","854939","35.55","Equipment - Purchase","190273409","07/10/2016","Fleet Services","Fleet Management","R4000"
"Wolverhampton City Council","http://opendatacommunities.org/id/metropolitan-district-council/wolverhampton","Evans Halshaw Ford","854835","44.49","Equipment - Purchase","190273408","07/10/2016","Fleet Services","Fleet Management","R4000"
"Wolverhampton City Council","http://opendatacommunities.org/id/metropolitan-district-council/wolverhampton","Evans Halshaw Ford","210329","180.36","Services - Professional Fees","190274669","12/10/2016","Fleet Services","Fleet Management","R4400"
"Wolverhampton City Council","http://opendatacommunities.org/id/metropolitan-district-council/wolverhampton","Evans Halshaw Ford","210329","112.5","Services - Professional Fees","190274669","12/10/2016","Fleet Services","Fleet Management","R4400"
"Wolverhampton City Council","http://opendatacommunities.org/id/metropolitan-district-council/wolverhampton","Evans Halshaw Ford","856503","42.4","Equipment - Purchase","190274693","12/10/2016","Fleet Services","Fleet Management","R4000"
"Wolverhampton City Council","http://opendatacommunities.org/id/metropolitan-district-council/wolverhampton","Evans Halshaw Ford","856025","68.25","Equipment - Purchase","190274692","12/10/2016","Fleet Services","Fleet Management","R4000"
"Wolverhampton City Council","http://opendatacommunities.org/id/metropolitan-district-council/wolverhampton","Evans Halshaw Ford","857092","56.22","Equipment - Purchase","190277107","21/10/2016","Fleet Services","Fleet Management","R4000"
"Wolverhampton City Council","http://opendatacommunities.org/id/metropolitan-district-council/wolverhampton","Evans Halshaw Ford","856982","148.33","Equipment - Purchase","190277106","21/10/2016","Fleet Services","Fleet Management","R4000"
"Wolverhampton City Council","http://opendatacommunities.org/id/metropolitan-district-council/wolverhampton","Evans Halshaw Ford","857131","118.9","Equipment - Purchase","190277108","21/10/2016","Fleet Services","Fleet Management","R4000"
"Wolverhampton City Council","http://opendatacommunities.org/id/metropolitan-district-council/wolverhampton","Evans Halshaw Ford","855883","145.8","Equipment - Purchase","190277103","21/10/2016","Fleet Services","Fleet Management","R4000"
"Wolverhampton City Council","http://opendatacommunities.org/id/metropolitan-district-council/wolverhampton","Evans Halshaw Ford","856198","24.16","Equipment - Purchase","190277104","21/10/2016","Fleet Services","Fleet Management","R4000"
"Wolverhampton City Council","http://opendatacommunities.org/id/metropolitan-district-council/wolverhampton","Evans Halshaw Ford","856470","49.89","Equipment - Purchase","190277105","21/10/2016","Fleet Services","Fleet Management","R4000"
"Wolverhampton City Council","http://opendatacommunities.org/id/metropolitan-district-council/wolverhampton","Evans Halshaw Ford","858503","26.88","Equipment - Purchase","190277651","21/10/2016","Fleet Services","Fleet Management","R4000"
"Wolverhampton City Council","http://opendatacommunities.org/id/metropolitan-district-council/wolverhampton","Evans Halshaw Ford","857570","27.98","Equipment - Purchase","190275295","14/10/2016","Fleet Services","Fleet Management","R4000"
"Wolverhampton City Council","http://opendatacommunities.org/id/metropolitan-district-council/wolverhampton","Evans Halshaw Ford","850157","3.84","Equipment - Purchase","190275290","14/10/2016","Fleet Services","Fleet Management","R4000"
"Wolverhampton City Council","http://opendatacommunities.org/id/metropolitan-district-council/wolverhampton","Evans Halshaw Ford","850157","35.45","Equipment - Purchase","190275290","14/10/2016","Fleet Services","Fleet Management","R4000"
"Wolverhampton City Council","http://opendatacommunities.org/id/metropolitan-district-council/wolverhampton","Evans Halshaw Ford","855804","31.64","Equipment - Purchase","190275293","14/10/2016","Fleet Services","Fleet Management","R4000"
"Wolverhampton City Council","http://opendatacommunities.org/id/metropolitan-district-council/wolverhampton","Evans Halshaw Ford","850255","32.66","Equipment - Purchase","190275291","14/10/2016","Fleet Services","Fleet Management","R4000"
"Wolverhampton City Council","http://opendatacommunities.org/id/metropolitan-district-council/wolverhampton","Evans Halshaw Ford","849086","20.94","Equipment - Purchase","190275289","14/10/2016","Fleet Services","Fleet Management","R4000"
"Wolverhampton City Council","http://opendatacommunities.org/id/metropolitan-district-council/wolverhampton","Evans Halshaw Ford","849086","94.25","Equipment - Purchase","190275289","14/10/2016","Fleet Services","Fleet Management","R4000"
"Wolverhampton City Council","http://opendatacommunities.org/id/metropolitan-district-council/wolverhampton","Evans Halshaw Ford","857535","4.51","Equipment - Purchase","190275294","14/10/2016","Fleet Services","Fleet Management","R4000"
"Wolverhampton City Council","http://opendatacommunities.org/id/metropolitan-district-council/wolverhampton","Evans Halshaw Ford","854290","9.43","Equipment - Purchase","190275292","14/10/2016","Fleet Services","Fleet Management","R4000"
"Wolverhampton City Council","http://opendatacommunities.org/id/metropolitan-district-council/wolverhampton","Evans Halshaw Ford","854290","-94.25","Equipment - Purchase","190275292","14/10/2016","Fleet Services","Fleet Management","R4000"
"Wolverhampton City Council","http://opendatacommunities.org/id/metropolitan-district-council/wolverhampton","Evans Halshaw Ford","858055","-27.98","Equipment - Purchase","190275300","14/10/2016","Fleet Services","Fleet Management","R4000"
"Wolverhampton City Council","http://opendatacommunities.org/id/metropolitan-district-council/wolverhampton","Evans Halshaw Ford","857916","94.28","Equipment - Purchase","190275298","14/10/2016","Fleet Services","Fleet Management","R4000"
"Wolverhampton City Council","http://opendatacommunities.org/id/metropolitan-district-council/wolverhampton","Evans Halshaw Ford","857916","31.23","Equipment - Purchase","190275298","14/10/2016","Fleet Services","Fleet Management","R4000"
"Wolverhampton City Council","http://opendatacommunities.org/id/metropolitan-district-council/wolverhampton","Evans Halshaw Ford","857847","82.28","Equipment - Purchase","190275296","14/10/2016","Fleet Services","Fleet Management","R4000"
"Wolverhampton City Council","http://opendatacommunities.org/id/metropolitan-district-council/wolverhampton","Evans Halshaw Ford","858103","27.37","Equipment - Purchase","190275301","14/10/2016","Fleet Services","Fleet Management","R4000"
"Wolverhampton City Council","http://opendatacommunities.org/id/metropolitan-district-council/wolverhampton","Evans Halshaw Ford","857900","38","Equipment - Purchase","190275297","14/10/2016","Fleet Services","Fleet Management","R4000"
"Wolverhampton City Council","http://opendatacommunities.org/id/metropolitan-district-council/wolverhampton","Evans Halshaw Ford","857570","27.32","Equipment - Purchase","190275295","14/10/2016","Fleet Services","Fleet Management","R4000"
"Wolverhampton City Council","http://opendatacommunities.org/id/metropolitan-district-council/wolverhampton","Evans Halshaw Ford","857570","51.31","Equipment - Purchase","190275295","14/10/2016","Fleet Services","Fleet Management","R4000"
"Wolverhampton City Council","http://opendatacommunities.org/id/metropolitan-district-council/wolverhampton","Evans Halshaw Ford","857570","35.36","Equipment - Purchase","190275295","14/10/2016","Fleet Services","Fleet Management","R4000"
"Wolverhampton City Council","http://opendatacommunities.org/id/metropolitan-district-council/wolverhampton","Evans Halshaw Ford","858012","261.01","Equipment - Purchase","190275299","14/10/2016","Fleet Services","Fleet Management","R4000"
"Wolverhampton City Council","http://opendatacommunities.org/id/metropolitan-district-council/wolverhampton","Eyears","7034172","73.92","Services - Professional Fees","130138987","05/10/2016","Transformation - Public Health","Transformation","R4400"
"Wolverhampton City Council","http://opendatacommunities.org/id/metropolitan-district-council/wolverhampton","Eyears","74661","362.08","Agency Staff","130142241","26/10/2016","Early Intervention","EIP Locality 4","R1100"
"Wolverhampton City Council","http://opendatacommunities.org/id/metropolitan-district-council/wolverhampton","Eyears","7034455","49.28","Services - Professional Fees","130141219","19/10/2016","Transformation - Public Health","Transformation","R4400"
"Wolverhampton City Council","http://opendatacommunities.org/id/metropolitan-district-council/wolverhampton","Eyears","7034225","97","Agency Staff","130142235","28/10/2016","Early Intervention","EIP Locality 4","R1100"
"Wolverhampton City Council","http://opendatacommunities.org/id/metropolitan-district-council/wolverhampton","Eyears","7033828","63.8","Agency Staff","130142233","28/10/2016","Early Intervention","EIP Locality 4","R1100"
"Wolverhampton City Council","http://opendatacommunities.org/id/metropolitan-district-council/wolverhampton","Eyears","7034105","95.7","Agency Staff","130138986","28/10/2016","Early Intervention","EIP Locality 4","R1100"
"Wolverhampton City Council","http://opendatacommunities.org/id/metropolitan-district-council/wolverhampton","Eyears","7034368","95.7","Agency Staff","130142236","28/10/2016","Early Intervention","EIP Locality 4","R1100"
"Wolverhampton City Council","http://opendatacommunities.org/id/metropolitan-district-council/wolverhampton","Eyears","7034524","95.7","Agency Staff","130142237","28/10/2016","Early Intervention","EIP Locality 4","R1100"
"Wolverhampton City Council","http://opendatacommunities.org/id/metropolitan-district-council/wolverhampton","Eyears","7034305","73.92","Services - Professional Fees","130140306","14/10/2016","Transformation - Public Health","Transformation","R4400"
"Wolverhampton City Council","http://opendatacommunities.org/id/metropolitan-district-council/wolverhampton","F & M Building Services","15/0412/DFG","3,336.00","Grants paid out","190272657","05/10/2016","","Disabled Facilities Grants","C5000"
"Wolverhampton City Council","http://opendatacommunities.org/id/metropolitan-district-council/wolverhampton","F & M Building Services","15/0471/DFG","5,843.00","Grants paid out","190274368","12/10/2016","","Disabled Facilities Grants","C5000"
"Wolverhampton City Council","http://opendatacommunities.org/id/metropolitan-district-council/wolverhampton","Falon Nameplates Limited","2162060","82.7","Materials for resale","130140037","12/10/2016","Bereavement Services","Crematorium","R4008"
"Wolverhampton City Council","http://opendatacommunities.org/id/metropolitan-district-council/wolverhampton","Fbc Manby Bowdler Llp","TP160047/SC 1/GS/Lacey","360","Insurance - General","190272366","05/10/2016","Audit Services","Legal Liability","R4962"
"Wolverhampton City Council","http://opendatacommunities.org/id/metropolitan-district-council/wolverhampton","Feast UK Limited","6771","171.95","Provisions (Resale)","130139808","12/10/2016","Leisure Services","Bert Williams Leisure Centre Caf�","R4102"
"Wolverhampton City Council","http://opendatacommunities.org/id/metropolitan-district-council/wolverhampton","Feast UK Limited","6771","-171.95","Provisions (Resale)","130139808","12/10/2016","Leisure Services","Bert Williams Leisure Centre Caf�","R4102"
"Wolverhampton City Council","http://opendatacommunities.org/id/metropolitan-district-council/wolverhampton","Feast UK Limited","6771","8.19","Provisions (Resale)","130139808","12/10/2016","Leisure Services","Bert Williams Leisure Centre Caf�","R4102"
"Wolverhampton City Council","http://opendatacommunities.org/id/metropolitan-district-council/wolverhampton","Feast UK Limited","6771","163.76","Provisions (Resale)","130139808","12/10/2016","Leisure Services","Bert Williams Leisure Centre Caf�","R4102"
"Wolverhampton City Council","http://opendatacommunities.org/id/metropolitan-district-council/wolverhampton","Feast UK Limited","6819","212.6","Provisions (Resale)","130141714","28/10/2016","Leisure Services","Bert Williams Leisure Centre Caf�","R4102"
"Wolverhampton City Council","http://opendatacommunities.org/id/metropolitan-district-council/wolverhampton","Feast UK Limited","6819","-212.6","Provisions (Resale)","130141714","28/10/2016","Leisure Services","Bert Williams Leisure Centre Caf�","R4102"
"Wolverhampton City Council","http://opendatacommunities.org/id/metropolitan-district-council/wolverhampton","Feast UK Limited","6819","5.75","Provisions (Resale)","130141714","28/10/2016","Leisure Services","Bert Williams Leisure Centre Caf�","R4102"
"Wolverhampton City Council","http://opendatacommunities.org/id/metropolitan-district-council/wolverhampton","Feast UK Limited","6819","206.85","Provisions (Resale)","130141714","28/10/2016","Leisure Services","Bert Williams Leisure Centre Caf�","R4102"
"Wolverhampton City Council","http://opendatacommunities.org/id/metropolitan-district-council/wolverhampton","Five Rivers Child Care Limited","P128520 13111620161021","4,181.24","TPP - Placement Foster Care Agency","190277784","26/10/2016","Looked After Children","Out of City Placements","R5602"
"Wolverhampton City Council","http://opendatacommunities.org/id/metropolitan-district-council/wolverhampton","Fleet (Line Markers)Limited","SI169494","1,773.76","Materials","130138442","07/10/2016","Environmental Maintenance","Direct Schools","R4007"
"Wolverhampton City Council","http://opendatacommunities.org/id/metropolitan-district-council/wolverhampton","Forensics Limited T/A Roar Forensics","23912","351.5","Services - Professional Fees","130142061","26/10/2016","Democratic Services","Coroners","R4400"
"Wolverhampton City Council","http://opendatacommunities.org/id/metropolitan-district-council/wolverhampton","Forensics Limited T/A Roar Forensics","23810","399","Services - Professional Fees","130142059","26/10/2016","Democratic Services","Coroners","R4400"
"Wolverhampton City Council","http://opendatacommunities.org/id/metropolitan-district-council/wolverhampton","Forensics Limited T/A Roar Forensics","24828","470.25","Services - Professional Fees","130142063","26/10/2016","Democratic Services","Coroners","R4400"
"Wolverhampton City Council","http://opendatacommunities.org/id/metropolitan-district-council/wolverhampton","Forensics Limited T/A Roar Forensics","24857","470.25","Services - Professional Fees","130142064","26/10/2016","Democratic Services","Coroners","R4400"
"Wolverhampton City Council","http://opendatacommunities.org/id/metropolitan-district-council/wolverhampton","Forensics Limited T/A Roar Forensics","24081","294.5","Services - Professional Fees","130142062","26/10/2016","Democratic Services","Coroners","R4400"
"Wolverhampton City Council","http://opendatacommunities.org/id/metropolitan-district-council/wolverhampton","Forensics Limited T/A Roar Forensics","23819","470.25","Services - Professional Fees","130142060","26/10/2016","Democratic Services","Coroners","R4400"
"Wolverhampton City Council","http://opendatacommunities.org/id/metropolitan-district-council/wolverhampton","Forensics Limited T/A Roar Forensics","24471","470.25","Services - Professional Fees","130138896","12/10/2016","Democratic Services","Coroners","R4400"
"Wolverhampton City Council","http://opendatacommunities.org/id/metropolitan-district-council/wolverhampton","Forensics Limited T/A Roar Forensics","24496","456","Services - Professional Fees","130138897","12/10/2016","Democratic Services","Coroners","R4400"
"Wolverhampton City Council","http://opendatacommunities.org/id/metropolitan-district-council/wolverhampton","Forensics Limited T/A Roar Forensics","24671","389.5","Services - Professional Fees","130141108","19/10/2016","Democratic Services","Coroners","R4400"
"Wolverhampton City Council","http://opendatacommunities.org/id/metropolitan-district-council/wolverhampton","Fumex Limited","432230","240","Equipment - R & M","190272270","05/10/2016","Fleet Services","Fleet Management","R4003"
"Wolverhampton City Council","http://opendatacommunities.org/id/metropolitan-district-council/wolverhampton","Fumex Limited","432230","284","Equipment - R & M","190272270","05/10/2016","Fleet Services","Fleet Management","R4003"
"Wolverhampton City Council","http://opendatacommunities.org/id/metropolitan-district-council/wolverhampton","Fumex Limited","432230","218","Equipment - R & M","190272270","05/10/2016","Fleet Services","Fleet Management","R4003"
"Wolverhampton City Council","http://opendatacommunities.org/id/metropolitan-district-council/wolverhampton","Fumex Limited","432230","310","Equipment - R & M","190272270","05/10/2016","Fleet Services","Fleet Management","R4003"
"Wolverhampton City Council","http://opendatacommunities.org/id/metropolitan-district-council/wolverhampton","Fumex Limited","432230","284","Equipment - R & M","190272270","05/10/2016","Fleet Services","Fleet Management","R4003"
"Wolverhampton City Council","http://opendatacommunities.org/id/metropolitan-district-council/wolverhampton","Fumex Limited","432230","100","Equipment - R & M","190272270","05/10/2016","Fleet Services","Fleet Management","R4003"
"Wolverhampton City Council","http://opendatacommunities.org/id/metropolitan-district-council/wolverhampton","Fumex Limited","432230","40","Equipment - R & M","190272270","05/10/2016","Fleet Services","Fleet Management","R4003"
"Wolverhampton City Council","http://opendatacommunities.org/id/metropolitan-district-council/wolverhampton","Fumex Limited","432230","284","Equipment - R & M","190272270","05/10/2016","Fleet Services","Fleet Management","R4003"
"Wolverhampton City Council","http://opendatacommunities.org/id/metropolitan-district-council/wolverhampton","G & S Smirthwaite Limited","142544","252","Equipment - Purchase","130140022","07/10/2016","Independent Living Service","Independent Living Service","R4000"
"Wolverhampton City Council","http://opendatacommunities.org/id/metropolitan-district-council/wolverhampton","G & S Smirthwaite Limited","142545","541.2","Equipment - Purchase","130139553","12/10/2016","Independent Living Service","Independent Living Service","R4000"
"Wolverhampton City Council","http://opendatacommunities.org/id/metropolitan-district-council/wolverhampton","G & S Smirthwaite Limited","142545","-541.2","Equipment - Purchase","130139553","12/10/2016","Independent Living Service","Independent Living Service","R4000"
"Wolverhampton City Council","http://opendatacommunities.org/id/metropolitan-district-council/wolverhampton","G & S Smirthwaite Limited","142545","541.2","Equipment - Purchase","130139553","12/10/2016","Independent Living Service","Independent Living Service","R4000"
"Wolverhampton City Council","http://opendatacommunities.org/id/metropolitan-district-council/wolverhampton","G & S Smirthwaite Limited","142826","130","Equipment - R & M","130140936","14/10/2016","Independent Living Service","Independent Living Service","R4003"
"Wolverhampton City Council","http://opendatacommunities.org/id/metropolitan-district-council/wolverhampton","G.C.Rickards (Investments) Limited","1017","3,325.00","Rent","130137491","07/10/2016","Highways Maintenance","Patching","R2200"
"Wolverhampton City Council","http://opendatacommunities.org/id/metropolitan-district-council/wolverhampton","G.C.Rickards (Investments) Limited","1017","3,325.00","Rent","130137491","07/10/2016","Operation & Maintenance of Existing Network","Rechargeable Works to Capital - Contract Annual Costs","R2200"
"Wolverhampton City Council","http://opendatacommunities.org/id/metropolitan-district-council/wolverhampton","Gartec Limited","S002188","1,286.25","R&M - Departmental planned (external)","130140428","14/10/2016","Parking Services","Shopmobility","R2001"
"Wolverhampton City Council","http://opendatacommunities.org/id/metropolitan-district-council/wolverhampton","Gazebo Theatre-In-Education Co Limited","GZI13404","2,049.80","Grant Payments","130137873","07/10/2016","Sports Development","Self-Reliant Communities Project","R4700"
"Wolverhampton City Council","http://opendatacommunities.org/id/metropolitan-district-council/wolverhampton","Gazebo Theatre-In-Education Co Limited","GZI13405","2,043.00","Grant Payments","130137874","07/10/2016","Sports Development","Self-Reliant Communities Project","R4700"
"Wolverhampton City Council","http://opendatacommunities.org/id/metropolitan-district-council/wolverhampton","Gazebo Theatre-In-Education Co Limited","GZI13406","2,043.00","Grant Payments","130137875","07/10/2016","Sports Development","Self-Reliant Communities Project","R4700"
"Wolverhampton City Council","http://opendatacommunities.org/id/metropolitan-district-council/wolverhampton","Gazebo Theatre-In-Education Co Limited","GZI13407","2,043.00","Grant Payments","130137876","07/10/2016","Sports Development","Self-Reliant Communities Project","R4700"
"Wolverhampton City Council","http://opendatacommunities.org/id/metropolitan-district-council/wolverhampton","Gazebo Theatre-In-Education Co Limited","GZI13408","2,043.00","Grant Payments","130137877","07/10/2016","Sports Development","Self-Reliant Communities Project","R4700"
"Wolverhampton City Council","http://opendatacommunities.org/id/metropolitan-district-council/wolverhampton","Gazebo Theatre-In-Education Co Limited","GZI13403 CR","-4,410.00","Grant Payments","130137872","07/10/2016","Sports Development","Self-Reliant Communities Project","R4700"
"Wolverhampton City Council","http://opendatacommunities.org/id/metropolitan-district-council/wolverhampton","Gazebo Theatre-In-Education Co Limited","GZI13411","250","Room Hire","130138570","14/10/2016","Human Resources","Workforce Development","R2201"
"Wolverhampton City Council","http://opendatacommunities.org/id/metropolitan-district-council/wolverhampton","Gazebo Theatre-In-Education Co Limited","GZI13411","180","Catering","130138570","14/10/2016","Human Resources","Workforce Development","R4100"
"Wolverhampton City Council","http://opendatacommunities.org/id/metropolitan-district-council/wolverhampton","Gazebo Theatre-In-Education Co Limited","GZI13412","250","Room Hire","130138571","14/10/2016","Human Resources","Workforce Development","R2201"
"Wolverhampton City Council","http://opendatacommunities.org/id/metropolitan-district-council/wolverhampton","Gazebo Theatre-In-Education Co Limited","GZI13412","180","Catering","130138571","14/10/2016","Human Resources","Workforce Development","R4100"
"Wolverhampton City Council","http://opendatacommunities.org/id/metropolitan-district-council/wolverhampton","Geeky Creative","685","750","Marketing \ Non-staff advertising","130140303","12/10/2016","Visitor Economy","Civic Halls Non-Direct Event Management Account","R4317"
"Wolverhampton City Council","http://opendatacommunities.org/id/metropolitan-district-council/wolverhampton","General Battery Supplies","160997","528","Equipment - Purchase","130138936","14/10/2016","Independent Living Service","Telecare","R4000"
"Wolverhampton City Council","http://opendatacommunities.org/id/metropolitan-district-council/wolverhampton","Glaze Auto Parts Limited","IN642075","56.84","Equipment - Purchase","190272284","05/10/2016","Fleet Services","Fleet Management","R4000"
"Wolverhampton City Council","http://opendatacommunities.org/id/metropolitan-district-council/wolverhampton","Glaze Auto Parts Limited","IN642064","11.66","Equipment - Purchase","190272283","05/10/2016","Fleet Services","Fleet Management","R4000"
"Wolverhampton City Council","http://opendatacommunities.org/id/metropolitan-district-council/wolverhampton","Glaze Auto Parts Limited","IN641719","16.62","Equipment - Purchase","190272282","05/10/2016","Fleet Services","Fleet Management","R4000"
"Wolverhampton City Council","http://opendatacommunities.org/id/metropolitan-district-council/wolverhampton","Glaze Auto Parts Limited","IN641719","6.13","Equipment - Purchase","190272282","05/10/2016","Fleet Services","Fleet Management","R4000"
"Wolverhampton City Council","http://opendatacommunities.org/id/metropolitan-district-council/wolverhampton","Glaze Auto Parts Limited","IN641719","14.64","Equipment - Purchase","190272282","05/10/2016","Fleet Services","Fleet Management","R4000"
"Wolverhampton City Council","http://opendatacommunities.org/id/metropolitan-district-council/wolverhampton","Glaze Auto Parts Limited","IN641719","2.85","Equipment - Purchase","190272282","05/10/2016","Fleet Services","Fleet Management","R4000"
"Wolverhampton City Council","http://opendatacommunities.org/id/metropolitan-district-council/wolverhampton","Glaze Auto Parts Limited","IN642813","13.84","Equipment - Purchase","190273430","07/10/2016","Fleet Services","Fleet Management","R4000"
"Wolverhampton City Council","http://opendatacommunities.org/id/metropolitan-district-council/wolverhampton","Glaze Auto Parts Limited","IN642961","11.86","Equipment - Purchase","190273431","07/10/2016","Fleet Services","Fleet Management","R4000"
"Wolverhampton City Council","http://opendatacommunities.org/id/metropolitan-district-council/wolverhampton","Glaze Auto Parts Limited","IN642391","11.68","Equipment - Purchase","190273428","07/10/2016","Fleet Services","Fleet Management","R4000"
"Wolverhampton City Council","http://opendatacommunities.org/id/metropolitan-district-council/wolverhampton","Glaze Auto Parts Limited","IN642391","11.68","Equipment - Purchase","190273428","07/10/2016","Fleet Services","Fleet Management","R4000"
"Wolverhampton City Council","http://opendatacommunities.org/id/metropolitan-district-council/wolverhampton","Glaze Auto Parts Limited","IN642787","0.88","Equipment - Purchase","190273429","07/10/2016","Fleet Services","Fleet Management","R4000"
"Wolverhampton City Council","http://opendatacommunities.org/id/metropolitan-district-council/wolverhampton","Glaze Auto Parts Limited","IN643076","127.02","Equipment - Purchase","190273432","07/10/2016","Fleet Services","Fleet Management","R4000"
"Wolverhampton City Council","http://opendatacommunities.org/id/metropolitan-district-council/wolverhampton","Glaze Auto Parts Limited","CR118801.1","-52.99","Equipment - Purchase","190274695","12/10/2016","Fleet Services","Fleet Management","R4000"
"Wolverhampton City Council","http://opendatacommunities.org/id/metropolitan-district-council/wolverhampton","Glaze Auto Parts Limited","CR118801.2","-15","Equipment - Purchase","190274696","12/10/2016","Fleet Services","Fleet Management","R4000"
"Wolverhampton City Council","http://opendatacommunities.org/id/metropolitan-district-council/wolverhampton","Glaze Auto Parts Limited","IN640446","52.99","Equipment - Purchase","190274703","12/10/2016","Fleet Services","Fleet Management","R4000"
"Wolverhampton City Council","http://opendatacommunities.org/id/metropolitan-district-council/wolverhampton","Glaze Auto Parts Limited","IN644475","89.28","Equipment - Purchase","190274710","12/10/2016","Fleet Services","Fleet Management","R4000"
"Wolverhampton City Council","http://opendatacommunities.org/id/metropolitan-district-council/wolverhampton","Glaze Auto Parts Limited","IN644683","116.44","Equipment - Purchase","190274711","12/10/2016","Fleet Services","Fleet Management","R4000"
"Wolverhampton City Council","http://opendatacommunities.org/id/metropolitan-district-council/wolverhampton","Glaze Auto Parts Limited","IN644683","54.04","Equipment - Purchase","190274711","12/10/2016","Fleet Services","Fleet Management","R4000"
"Wolverhampton City Council","http://opendatacommunities.org/id/metropolitan-district-council/wolverhampton","Glaze Auto Parts Limited","IN640411","1.83","Equipment - Purchase","190274702","12/10/2016","Fleet Services","Fleet Management","R4000"
"Wolverhampton City Council","http://opendatacommunities.org/id/metropolitan-district-council/wolverhampton","Glaze Auto Parts Limited","IN640411","5.75","Equipment - Purchase","190274702","12/10/2016","Fleet Services","Fleet Management","R4000"
"Wolverhampton City Council","http://opendatacommunities.org/id/metropolitan-district-council/wolverhampton","Glaze Auto Parts Limited","IN640411","4.28","Equipment - Purchase","190274702","12/10/2016","Fleet Services","Fleet Management","R4000"
"Wolverhampton City Council","http://opendatacommunities.org/id/metropolitan-district-council/wolverhampton","Glaze Auto Parts Limited","IN644169","28.58","Equipment - Purchase","190274705","12/10/2016","Fleet Services","Fleet Management","R4000"
"Wolverhampton City Council","http://opendatacommunities.org/id/metropolitan-district-council/wolverhampton","Glaze Auto Parts Limited","IN644149","29.76","Equipment - Purchase","190274704","12/10/2016","Fleet Services","Fleet Management","R4000"
"Wolverhampton City Council","http://opendatacommunities.org/id/metropolitan-district-council/wolverhampton","Glaze Auto Parts Limited","IN644149","116.44","Equipment - Purchase","190274704","12/10/2016","Fleet Services","Fleet Management","R4000"
"Wolverhampton City Council","http://opendatacommunities.org/id/metropolitan-district-council/wolverhampton","Glaze Auto Parts Limited","IN644149","14.9","Equipment - Purchase","190274704","12/10/2016","Fleet Services","Fleet Management","R4000"
"Wolverhampton City Council","http://opendatacommunities.org/id/metropolitan-district-council/wolverhampton","Glaze Auto Parts Limited","IN644149","25.82","Equipment - Purchase","190274704","12/10/2016","Fleet Services","Fleet Management","R4000"
"Wolverhampton City Council","http://opendatacommunities.org/id/metropolitan-district-council/wolverhampton","Glaze Auto Parts Limited","IN644149","10.2","Equipment - Purchase","190274704","12/10/2016","Fleet Services","Fleet Management","R4000"
"Wolverhampton City Council","http://opendatacommunities.org/id/metropolitan-district-council/wolverhampton","Glaze Auto Parts Limited","IN644149","27.02","Equipment - Purchase","190274704","12/10/2016","Fleet Services","Fleet Management","R4000"
"Wolverhampton City Council","http://opendatacommunities.org/id/metropolitan-district-council/wolverhampton","Glaze Auto Parts Limited","IN644475","77.46","Equipment - Purchase","190274710","12/10/2016","Fleet Services","Fleet Management","R4000"
"Wolverhampton City Council","http://opendatacommunities.org/id/metropolitan-district-council/wolverhampton","Glaze Auto Parts Limited","IN644475","44.7","Equipment - Purchase","190274710","12/10/2016","Fleet Services","Fleet Management","R4000"
"Wolverhampton City Council","http://opendatacommunities.org/id/metropolitan-district-council/wolverhampton","Glaze Auto Parts Limited","IN644475","30.6","Equipment - Purchase","190274710","12/10/2016","Fleet Services","Fleet Management","R4000"
"Wolverhampton City Council","http://opendatacommunities.org/id/metropolitan-district-council/wolverhampton","Glaze Auto Parts Limited","IN644210","33.28","Equipment - Purchase","190274707","12/10/2016","Fleet Services","Fleet Management","R4000"
"Wolverhampton City Council","http://opendatacommunities.org/id/metropolitan-district-council/wolverhampton","Glaze Auto Parts Limited","IN644458","114.09","Equipment - Purchase","190274709","12/10/2016","Fleet Services","Fleet Management","R4000"
"Wolverhampton City Council","http://opendatacommunities.org/id/metropolitan-district-council/wolverhampton","Glaze Auto Parts Limited","IN644420","67.39","Equipment - Purchase","190274708","12/10/2016","Fleet Services","Fleet Management","R4000"
"Wolverhampton City Council","http://opendatacommunities.org/id/metropolitan-district-council/wolverhampton","Glaze Auto Parts Limited","IN644178","16.64","Equipment - Purchase","190274706","12/10/2016","Fleet Services","Fleet Management","R4000"
"Wolverhampton City Council","http://opendatacommunities.org/id/metropolitan-district-council/wolverhampton","Glaze Auto Parts Limited","IN645622","68.25","Equipment - Purchase","190277665","21/10/2016","Fleet Services","Fleet Management","R4000"
"Wolverhampton City Council","http://opendatacommunities.org/id/metropolitan-district-council/wolverhampton","Glaze Auto Parts Limited","IN645742","14.9","Equipment - Purchase","190277667","21/10/2016","Fleet Services","Fleet Management","R4000"
"Wolverhampton City Council","http://opendatacommunities.org/id/metropolitan-district-council/wolverhampton","Glaze Auto Parts Limited","IN645742","24.96","Equipment - Purchase","190277667","21/10/2016","Fleet Services","Fleet Management","R4000"
"Wolverhampton City Council","http://opendatacommunities.org/id/metropolitan-district-council/wolverhampton","Glaze Auto Parts Limited","IN645742","116.44","Equipment - Purchase","190277667","21/10/2016","Fleet Services","Fleet Management","R4000"
"Wolverhampton City Council","http://opendatacommunities.org/id/metropolitan-district-council/wolverhampton","Glaze Auto Parts Limited","IN645742","10.2","Equipment - Purchase","190277667","21/10/2016","Fleet Services","Fleet Management","R4000"
"Wolverhampton City Council","http://opendatacommunities.org/id/metropolitan-district-council/wolverhampton","Glaze Auto Parts Limited","IN645689","34.43","Equipment - Purchase","190277666","21/10/2016","Fleet Services","Fleet Management","R4000"
"Wolverhampton City Council","http://opendatacommunities.org/id/metropolitan-district-council/wolverhampton","Glaze Auto Parts Limited","IN645689","54","Equipment - Purchase","190277666","21/10/2016","Fleet Services","Fleet Management","R4000"
"Wolverhampton City Council","http://opendatacommunities.org/id/metropolitan-district-council/wolverhampton","Glaze Auto Parts Limited","IN645164","11.82","Equipment - Purchase","190277661","21/10/2016","Fleet Services","Fleet Management","R4000"
"Wolverhampton City Council","http://opendatacommunities.org/id/metropolitan-district-council/wolverhampton","Glaze Auto Parts Limited","IN645318","22.1","Equipment - Purchase","190277663","21/10/2016","Fleet Services","Fleet Management","R4000"
"Wolverhampton City Council","http://opendatacommunities.org/id/metropolitan-district-council/wolverhampton","Glaze Auto Parts Limited","IN645318","28.5","Equipment - Purchase","190277663","21/10/2016","Fleet Services","Fleet Management","R4000"
"Wolverhampton City Council","http://opendatacommunities.org/id/metropolitan-district-council/wolverhampton","Glaze Auto Parts Limited","IN645318","12.44","Equipment - Purchase","190277663","21/10/2016","Fleet Services","Fleet Management","R4000"
"Wolverhampton City Council","http://opendatacommunities.org/id/metropolitan-district-council/wolverhampton","Glaze Auto Parts Limited","IN645316","57.04","Equipment - Purchase","190277662","21/10/2016","Fleet Services","Fleet Management","R4000"
"Wolverhampton City Council","http://opendatacommunities.org/id/metropolitan-district-council/wolverhampton","Glaze Auto Parts Limited","IN645444","42.47","Equipment - Purchase","190277664","21/10/2016","Fleet Services","Fleet Management","R4000"
"Wolverhampton City Council","http://opendatacommunities.org/id/metropolitan-district-council/wolverhampton","Glaze Auto Parts Limited","CR118936.2","-7.38","Equipment - Purchase","190277126","21/10/2016","Fleet Services","Fleet Management","R4000"
"Wolverhampton City Council","http://opendatacommunities.org/id/metropolitan-district-council/wolverhampton","Glaze Auto Parts Limited","CR118936.1","-15","Equipment - Purchase","190277125","21/10/2016","Fleet Services","Fleet Management","R4000"
"Wolverhampton City Council","http://opendatacommunities.org/id/metropolitan-district-council/wolverhampton","Glaze Auto Parts Limited","CR118218.2","-2.85","Equipment - Purchase","190277117","21/10/2016","Fleet Services","Fleet Management","R4000"
"Wolverhampton City Council","http://opendatacommunities.org/id/metropolitan-district-council/wolverhampton","Glaze Auto Parts Limited","CR118803","-40.41","Equipment - Purchase","190277123","21/10/2016","Fleet Services","Fleet Management","R4000"
"Wolverhampton City Council","http://opendatacommunities.org/id/metropolitan-district-council/wolverhampton","Glaze Auto Parts Limited","CR118731","-47.56","Equipment - Purchase","190277122","21/10/2016","Fleet Services","Fleet Management","R4000"
"Wolverhampton City Council","http://opendatacommunities.org/id/metropolitan-district-council/wolverhampton","Glaze Auto Parts Limited","CR118218","-26.02","Equipment - Purchase","190277116","21/10/2016","Fleet Services","Fleet Management","R4000"
"Wolverhampton City Council","http://opendatacommunities.org/id/metropolitan-district-council/wolverhampton","Glaze Auto Parts Limited","CR118452","-60","Equipment - Purchase","190277119","21/10/2016","Fleet Services","Fleet Management","R4000"
"Wolverhampton City Council","http://opendatacommunities.org/id/metropolitan-district-council/wolverhampton","Glaze Auto Parts Limited","IN640522","58.2","Equipment - Purchase","190277157","21/10/2016","Fleet Services","Fleet Management","R4000"
"Wolverhampton City Council","http://opendatacommunities.org/id/metropolitan-district-council/wolverhampton","Glaze Auto Parts Limited","IN635616","2.85","Equipment - Purchase","190277140","21/10/2016","Fleet Services","Fleet Management","R4000"
"Wolverhampton City Council","http://opendatacommunities.org/id/metropolitan-district-council/wolverhampton","Glaze Auto Parts Limited","IN635616","60.24","Equipment - Purchase","190277140","21/10/2016","Fleet Services","Fleet Management","R4000"
"Wolverhampton City Council","http://opendatacommunities.org/id/metropolitan-district-council/wolverhampton","Glaze Auto Parts Limited","IN636079","30","Equipment - Purchase","190277144","21/10/2016","Fleet Services","Fleet Management","R4000"
"Wolverhampton City Council","http://opendatacommunities.org/id/metropolitan-district-council/wolverhampton","Glaze Auto Parts Limited","IN640559","22.8","Equipment - Purchase","190277158","21/10/2016","Fleet Services","Fleet Management","R4000"
"Wolverhampton City Council","http://opendatacommunities.org/id/metropolitan-district-council/wolverhampton","Glaze Auto Parts Limited","IN640559","14.88","Equipment - Purchase","190277158","21/10/2016","Fleet Services","Fleet Management","R4000"
"Wolverhampton City Council","http://opendatacommunities.org/id/metropolitan-district-council/wolverhampton","Glaze Auto Parts Limited","IN640559","24.88","Equipment - Purchase","190277158","21/10/2016","Fleet Services","Fleet Management","R4000"
"Wolverhampton City Council","http://opendatacommunities.org/id/metropolitan-district-council/wolverhampton","Glaze Auto Parts Limited","IN640559","57.75","Equipment - Purchase","190277158","21/10/2016","Fleet Services","Fleet Management","R4000"
"Wolverhampton City Council","http://opendatacommunities.org/id/metropolitan-district-council/wolverhampton","Glaze Auto Parts Limited","IN640559","7.45","Equipment - Purchase","190277158","21/10/2016","Fleet Services","Fleet Management","R4000"
"Wolverhampton City Council","http://opendatacommunities.org/id/metropolitan-district-council/wolverhampton","Glaze Auto Parts Limited","IN636112","12.45","Equipment - Purchase","190277145","21/10/2016","Fleet Services","Fleet Management","R4000"
"Wolverhampton City Council","http://opendatacommunities.org/id/metropolitan-district-council/wolverhampton","Glaze Auto Parts Limited","IN635656","23.56","Equipment - Purchase","190277141","21/10/2016","Fleet Services","Fleet Management","R4000"
"Wolverhampton City Council","http://opendatacommunities.org/id/metropolitan-district-council/wolverhampton","Glaze Auto Parts Limited","IN640517","21.65","Equipment - Purchase","190277156","21/10/2016","Fleet Services","Fleet Management","R4000"
"Wolverhampton City Council","http://opendatacommunities.org/id/metropolitan-district-council/wolverhampton","Glaze Auto Parts Limited","IN640517","57.04","Equipment - Purchase","190277156","21/10/2016","Fleet Services","Fleet Management","R4000"
"Wolverhampton City Council","http://opendatacommunities.org/id/metropolitan-district-council/wolverhampton","Glaze Auto Parts Limited","IN640517","37.97","Equipment - Purchase","190277156","21/10/2016","Fleet Services","Fleet Management","R4000"
"Wolverhampton City Council","http://opendatacommunities.org/id/metropolitan-district-council/wolverhampton","Glaze Auto Parts Limited","IN640517","18","Equipment - Purchase","190277156","21/10/2016","Fleet Services","Fleet Management","R4000"
"Wolverhampton City Council","http://opendatacommunities.org/id/metropolitan-district-council/wolverhampton","Glaze Auto Parts Limited","IN640517","27.56","Equipment - Purchase","190277156","21/10/2016","Fleet Services","Fleet Management","R4000"
"Wolverhampton City Council","http://opendatacommunities.org/id/metropolitan-district-council/wolverhampton","Glaze Auto Parts Limited","IN635705","138.16","Equipment - Purchase","190277143","21/10/2016","Fleet Services","Fleet Management","R4000"
"Wolverhampton City Council","http://opendatacommunities.org/id/metropolitan-district-council/wolverhampton","Glaze Auto Parts Limited","IN635705","60","Equipment - Purchase","190277143","21/10/2016","Fleet Services","Fleet Management","R4000"
"Wolverhampton City Council","http://opendatacommunities.org/id/metropolitan-district-council/wolverhampton","Glaze Auto Parts Limited","CR118521","-30","Equipment - Purchase","190277121","21/10/2016","Fleet Services","Fleet Management","R4000"
"Wolverhampton City Council","http://opendatacommunities.org/id/metropolitan-district-council/wolverhampton","Glaze Auto Parts Limited","CR118417","-42.45","Equipment - Purchase","190277118","21/10/2016","Fleet Services","Fleet Management","R4000"
"Wolverhampton City Council","http://opendatacommunities.org/id/metropolitan-district-council/wolverhampton","Glaze Auto Parts Limited","IN636166","19.33","Equipment - Purchase","190277146","21/10/2016","Fleet Services","Fleet Management","R4000"
"Wolverhampton City Council","http://opendatacommunities.org/id/metropolitan-district-council/wolverhampton","Glaze Auto Parts Limited","IN633676","3.57","Equipment - Purchase","190277134","21/10/2016","Fleet Services","Fleet Management","R4000"
"Wolverhampton City Council","http://opendatacommunities.org/id/metropolitan-district-council/wolverhampton","Glaze Auto Parts Limited","IN635659","5.21","Equipment - Purchase","190277142","21/10/2016","Fleet Services","Fleet Management","R4000"
"Wolverhampton City Council","http://opendatacommunities.org/id/metropolitan-district-council/wolverhampton","Glaze Auto Parts Limited","CR118453","-13.67","Equipment - Purchase","190277120","21/10/2016","Fleet Services","Fleet Management","R4000"
"Wolverhampton City Council","http://opendatacommunities.org/id/metropolitan-district-council/wolverhampton","Glaze Auto Parts Limited","IN633478","4.02","Equipment - Purchase","190277133","21/10/2016","Fleet Services","Fleet Management","R4000"
"Wolverhampton City Council","http://opendatacommunities.org/id/metropolitan-district-council/wolverhampton","Glaze Auto Parts Limited","IN633155","29.57","Equipment - Purchase","190277131","21/10/2016","Fleet Services","Fleet Management","R4000"
"Wolverhampton City Council","http://opendatacommunities.org/id/metropolitan-district-council/wolverhampton","Glaze Auto Parts Limited","IN636730","38.82","Equipment - Purchase","190277147","21/10/2016","Fleet Services","Fleet Management","R4000"
"Wolverhampton City Council","http://opendatacommunities.org/id/metropolitan-district-council/wolverhampton","Glaze Auto Parts Limited","IN640603","38.73","Equipment - Purchase","190277160","21/10/2016","Fleet Services","Fleet Management","R4000"
"Wolverhampton City Council","http://opendatacommunities.org/id/metropolitan-district-council/wolverhampton","Glaze Auto Parts Limited","CR118811","-8.48","Equipment - Purchase","190277124","21/10/2016","Fleet Services","Fleet Management","R4000"
"Wolverhampton City Council","http://opendatacommunities.org/id/metropolitan-district-council/wolverhampton","Glaze Auto Parts Limited","IN637684","6.71","Equipment - Purchase","190277148","21/10/2016","Fleet Services","Fleet Management","R4000"
"Wolverhampton City Council","http://opendatacommunities.org/id/metropolitan-district-council/wolverhampton","Glaze Auto Parts Limited","IN640967","136.35","Equipment - Purchase","190277161","21/10/2016","Fleet Services","Fleet Management","R4000"
"Wolverhampton City Council","http://opendatacommunities.org/id/metropolitan-district-council/wolverhampton","Glaze Auto Parts Limited","IN637685","94.43","Equipment - Purchase","190277149","21/10/2016","Fleet Services","Fleet Management","R4000"
"Wolverhampton City Council","http://opendatacommunities.org/id/metropolitan-district-council/wolverhampton","Glaze Auto Parts Limited","IN641126","15","Equipment - Purchase","190277162","21/10/2016","Fleet Services","Fleet Management","R4000"
"Wolverhampton City Council","http://opendatacommunities.org/id/metropolitan-district-council/wolverhampton","Glaze Auto Parts Limited","IN641126","59.95","Equipment - Purchase","190277162","21/10/2016","Fleet Services","Fleet Management","R4000"
"Wolverhampton City Council","http://opendatacommunities.org/id/metropolitan-district-council/wolverhampton","Glaze Auto Parts Limited","IN643415","8.01","Equipment - Purchase","190277166","21/10/2016","Fleet Services","Fleet Management","R4000"
"Wolverhampton City Council","http://opendatacommunities.org/id/metropolitan-district-council/wolverhampton","Glaze Auto Parts Limited","IN642415","9.75","Equipment - Purchase","190277165","21/10/2016","Fleet Services","Fleet Management","R4000"
"Wolverhampton City Council","http://opendatacommunities.org/id/metropolitan-district-council/wolverhampton","Glaze Auto Parts Limited","IN641158","6.76","Equipment - Purchase","190277163","21/10/2016","Fleet Services","Fleet Management","R4000"
"Wolverhampton City Council","http://opendatacommunities.org/id/metropolitan-district-council/wolverhampton","Glaze Auto Parts Limited","IN641158","29.44","Equipment - Purchase","190277163","21/10/2016","Fleet Services","Fleet Management","R4000"
"Wolverhampton City Council","http://opendatacommunities.org/id/metropolitan-district-council/wolverhampton","Glaze Auto Parts Limited","IN644861","232.88","Equipment - Purchase","190277172","21/10/2016","Fleet Services","Fleet Management","R4000"
"Wolverhampton City Council","http://opendatacommunities.org/id/metropolitan-district-council/wolverhampton","Glaze Auto Parts Limited","IN637698","30","Equipment - Purchase","190277150","21/10/2016","Fleet Services","Fleet Management","R4000"
"Wolverhampton City Council","http://opendatacommunities.org/id/metropolitan-district-council/wolverhampton","Glaze Auto Parts Limited","IN637698","12.38","Equipment - Purchase","190277150","21/10/2016","Fleet Services","Fleet Management","R4000"
"Wolverhampton City Council","http://opendatacommunities.org/id/metropolitan-district-council/wolverhampton","Glaze Auto Parts Limited","IN637698","105.16","Equipment - Purchase","190277150","21/10/2016","Fleet Services","Fleet Management","R4000"
"Wolverhampton City Council","http://opendatacommunities.org/id/metropolitan-district-council/wolverhampton","Glaze Auto Parts Limited","IN640559","5.1","Equipment - Purchase","190277158","21/10/2016","Fleet Services","Fleet Management","R4000"
"Wolverhampton City Council","http://opendatacommunities.org/id/metropolitan-district-council/wolverhampton","Glaze Auto Parts Limited","IN640559","16.8","Equipment - Purchase","190277158","21/10/2016","Fleet Services","Fleet Management","R4000"
"Wolverhampton City Council","http://opendatacommunities.org/id/metropolitan-district-council/wolverhampton","Glaze Auto Parts Limited","IN644759","141","Equipment - Purchase","190277171","21/10/2016","Fleet Services","Fleet Management","R4000"
"Wolverhampton City Council","http://opendatacommunities.org/id/metropolitan-district-council/wolverhampton","Glaze Auto Parts Limited","IN641159","4.79","Equipment - Purchase","190277164","21/10/2016","Fleet Services","Fleet Management","R4000"
"Wolverhampton City Council","http://opendatacommunities.org/id/metropolitan-district-council/wolverhampton","Glaze Auto Parts Limited","IN641159","7.38","Equipment - Purchase","190277164","21/10/2016","Fleet Services","Fleet Management","R4000"
"Wolverhampton City Council","http://opendatacommunities.org/id/metropolitan-district-council/wolverhampton","Glaze Auto Parts Limited","IN639999","5.75","Equipment - Purchase","190277151","21/10/2016","Fleet Services","Fleet Management","R4000"
"Wolverhampton City Council","http://opendatacommunities.org/id/metropolitan-district-council/wolverhampton","Glaze Auto Parts Limited","IN639999","1.83","Equipment - Purchase","190277151","21/10/2016","Fleet Services","Fleet Management","R4000"
"Wolverhampton City Council","http://opendatacommunities.org/id/metropolitan-district-council/wolverhampton","Glaze Auto Parts Limited","IN639999","4.28","Equipment - Purchase","190277151","21/10/2016","Fleet Services","Fleet Management","R4000"
"Wolverhampton City Council","http://opendatacommunities.org/id/metropolitan-district-council/wolverhampton","Glaze Auto Parts Limited","IN635102","13.99","Equipment - Purchase","190277139","21/10/2016","Fleet Services","Fleet Management","R4000"
"Wolverhampton City Council","http://opendatacommunities.org/id/metropolitan-district-council/wolverhampton","Glaze Auto Parts Limited","IN635081","13.67","Equipment - Purchase","190277137","21/10/2016","Fleet Services","Fleet Management","R4000"
"Wolverhampton City Council","http://opendatacommunities.org/id/metropolitan-district-council/wolverhampton","Glaze Auto Parts Limited","IN635081","3.2","Equipment - Purchase","190277137","21/10/2016","Fleet Services","Fleet Management","R4000"
"Wolverhampton City Council","http://opendatacommunities.org/id/metropolitan-district-council/wolverhampton","Glaze Auto Parts Limited","IN633697","42.44","Equipment - Purchase","190277135","21/10/2016","Fleet Services","Fleet Management","R4000"
"Wolverhampton City Council","http://opendatacommunities.org/id/metropolitan-district-council/wolverhampton","Glaze Auto Parts Limited","IN641158","5.85","Equipment - Purchase","190277163","21/10/2016","Fleet Services","Fleet Management","R4000"
"Wolverhampton City Council","http://opendatacommunities.org/id/metropolitan-district-council/wolverhampton","Glaze Auto Parts Limited","IN633181","41.95","Equipment - Purchase","190277132","21/10/2016","Fleet Services","Fleet Management","R4000"
"Wolverhampton City Council","http://opendatacommunities.org/id/metropolitan-district-council/wolverhampton","Glaze Auto Parts Limited","IN635059","110.18","Equipment - Purchase","190277136","21/10/2016","Fleet Services","Fleet Management","R4000"
"Wolverhampton City Council","http://opendatacommunities.org/id/metropolitan-district-council/wolverhampton","Glaze Auto Parts Limited","IN635086","3.2","Equipment - Purchase","190277138","21/10/2016","Fleet Services","Fleet Management","R4000"
"Wolverhampton City Council","http://opendatacommunities.org/id/metropolitan-district-council/wolverhampton","Glaze Auto Parts Limited","IN635086","16.95","Equipment - Purchase","190277138","21/10/2016","Fleet Services","Fleet Management","R4000"
"Wolverhampton City Council","http://opendatacommunities.org/id/metropolitan-district-council/wolverhampton","Glaze Auto Parts Limited","IN633478","33.55","Equipment - Purchase","190277133","21/10/2016","Fleet Services","Fleet Management","R4000"
"Wolverhampton City Council","http://opendatacommunities.org/id/metropolitan-district-council/wolverhampton","Glaze Auto Parts Limited","IN633478","93.41","Equipment - Purchase","190277133","21/10/2016","Fleet Services","Fleet Management","R4000"
"Wolverhampton City Council","http://opendatacommunities.org/id/metropolitan-district-council/wolverhampton","Glaze Auto Parts Limited","IN633478","33.96","Equipment - Purchase","190277133","21/10/2016","Fleet Services","Fleet Management","R4000"
"Wolverhampton City Council","http://opendatacommunities.org/id/metropolitan-district-council/wolverhampton","Glaze Auto Parts Limited","IN640573","38.44","Equipment - Purchase","190277159","21/10/2016","Fleet Services","Fleet Management","R4000"
"Wolverhampton City Council","http://opendatacommunities.org/id/metropolitan-district-council/wolverhampton","Glaze Auto Parts Limited","IN640095","1.95","Equipment - Purchase","190277155","21/10/2016","Fleet Services","Fleet Management","R4000"
"Wolverhampton City Council","http://opendatacommunities.org/id/metropolitan-district-council/wolverhampton","Glaze Auto Parts Limited","IN640573","23.62","Equipment - Purchase","190277159","21/10/2016","Fleet Services","Fleet Management","R4000"
"Wolverhampton City Council","http://opendatacommunities.org/id/metropolitan-district-council/wolverhampton","Glaze Auto Parts Limited","IN640573","25.88","Equipment - Purchase","190277159","21/10/2016","Fleet Services","Fleet Management","R4000"
"Wolverhampton City Council","http://opendatacommunities.org/id/metropolitan-district-council/wolverhampton","Glaze Auto Parts Limited","IN640573","14.44","Equipment - Purchase","190277159","21/10/2016","Fleet Services","Fleet Management","R4000"
"Wolverhampton City Council","http://opendatacommunities.org/id/metropolitan-district-council/wolverhampton","Glaze Auto Parts Limited","IN643597","12.85","Equipment - Purchase","190277168","21/10/2016","Fleet Services","Fleet Management","R4000"
"Wolverhampton City Council","http://opendatacommunities.org/id/metropolitan-district-council/wolverhampton","Glaze Auto Parts Limited","IN640040","40.41","Equipment - Purchase","190277153","21/10/2016","Fleet Services","Fleet Management","R4000"
"Wolverhampton City Council","http://opendatacommunities.org/id/metropolitan-district-council/wolverhampton","Glaze Auto Parts Limited","IN640040","73.69","Equipment - Purchase","190277153","21/10/2016","Fleet Services","Fleet Management","R4000"
"Wolverhampton City Council","http://opendatacommunities.org/id/metropolitan-district-council/wolverhampton","Glaze Auto Parts Limited","IN640069","65.42","Equipment - Purchase","190277154","21/10/2016","Fleet Services","Fleet Management","R4000"
"Wolverhampton City Council","http://opendatacommunities.org/id/metropolitan-district-council/wolverhampton","Glaze Auto Parts Limited","IN643467","47.84","Equipment - Purchase","190277167","21/10/2016","Fleet Services","Fleet Management","R4000"
"Wolverhampton City Council","http://opendatacommunities.org/id/metropolitan-district-council/wolverhampton","Glaze Auto Parts Limited","IN640015","47.56","Equipment - Purchase","190277152","21/10/2016","Fleet Services","Fleet Management","R4000"
"Wolverhampton City Council","http://opendatacommunities.org/id/metropolitan-district-council/wolverhampton","Glaze Auto Parts Limited","IN640015","15.68","Equipment - Purchase","190277152","21/10/2016","Fleet Services","Fleet Management","R4000"
"Wolverhampton City Council","http://opendatacommunities.org/id/metropolitan-district-council/wolverhampton","Glaze Auto Parts Limited","IN644258","85.38","Equipment - Purchase","190277170","21/10/2016","Fleet Services","Fleet Management","R4000"
"Wolverhampton City Council","http://opendatacommunities.org/id/metropolitan-district-council/wolverhampton","Glaze Auto Parts Limited","IN644235","127.02","Equipment - Purchase","190277169","21/10/2016","Fleet Services","Fleet Management","R4000"
"Wolverhampton City Council","http://opendatacommunities.org/id/metropolitan-district-council/wolverhampton","Glaze Auto Parts Limited","IN644235","3.43","Equipment - Purchase","190277169","21/10/2016","Fleet Services","Fleet Management","R4000"
"Wolverhampton City Council","http://opendatacommunities.org/id/metropolitan-district-council/wolverhampton","Glaze Auto Parts Limited","IN644235","3.12","Equipment - Purchase","190277169","21/10/2016","Fleet Services","Fleet Management","R4000"
"Wolverhampton City Council","http://opendatacommunities.org/id/metropolitan-district-council/wolverhampton","Glaze Auto Parts Limited","IN636079","114.41","Equipment - Purchase","190277144","21/10/2016","Fleet Services","Fleet Management","R4000"
"Wolverhampton City Council","http://opendatacommunities.org/id/metropolitan-district-council/wolverhampton","Glaze Auto Parts Limited","CR118123.1","-42.44","Equipment - Purchase","190277113","21/10/2016","Fleet Services","Fleet Management","R4000"
"Wolverhampton City Council","http://opendatacommunities.org/id/metropolitan-district-council/wolverhampton","Glaze Auto Parts Limited","CR118123.3","-3.2","Equipment - Purchase","190277115","21/10/2016","Fleet Services","Fleet Management","R4000"
"Wolverhampton City Council","http://opendatacommunities.org/id/metropolitan-district-council/wolverhampton","Glaze Auto Parts Limited","CR118123.2","-4.02","Equipment - Purchase","190277114","21/10/2016","Fleet Services","Fleet Management","R4000"
"Wolverhampton City Council","http://opendatacommunities.org/id/metropolitan-district-council/wolverhampton","Glaze Auto Parts Limited","IN645742","14.88","Equipment - Purchase","190277667","21/10/2016","Fleet Services","Fleet Management","R4000"
"Wolverhampton City Council","http://opendatacommunities.org/id/metropolitan-district-council/wolverhampton","Glaze Auto Parts Limited","IN645742","25.82","Equipment - Purchase","190277667","21/10/2016","Fleet Services","Fleet Management","R4000"
"Wolverhampton City Council","http://opendatacommunities.org/id/metropolitan-district-council/wolverhampton","Glaze Auto Parts Limited","IN644815","4.91","Equipment - Purchase","190275331","14/10/2016","Fleet Services","Fleet Management","R4000"
"Wolverhampton City Council","http://opendatacommunities.org/id/metropolitan-district-council/wolverhampton","Glaze Auto Parts Limited","IN644815","71.28","Equipment - Purchase","190275331","14/10/2016","Fleet Services","Fleet Management","R4000"
"Wolverhampton City Council","http://opendatacommunities.org/id/metropolitan-district-council/wolverhampton","Glaze Auto Parts Limited","IN644815","135","Equipment - Purchase","190275331","14/10/2016","Fleet Services","Fleet Management","R4000"
"Wolverhampton City Council","http://opendatacommunities.org/id/metropolitan-district-council/wolverhampton","Glaze Auto Parts Limited","IN644710","135","Equipment - Purchase","190275330","14/10/2016","Fleet Services","Fleet Management","R4000"
"Wolverhampton City Council","http://opendatacommunities.org/id/metropolitan-district-council/wolverhampton","Glaze Auto Parts Limited","IN644839","123.11","Equipment - Purchase","190275332","14/10/2016","Fleet Services","Fleet Management","R4000"
"Wolverhampton City Council","http://opendatacommunities.org/id/metropolitan-district-council/wolverhampton","Glaze Auto Parts Limited","IN643276","35.9","Equipment - Purchase","190275328","14/10/2016","Fleet Services","Fleet Management","R4000"
"Wolverhampton City Council","http://opendatacommunities.org/id/metropolitan-district-council/wolverhampton","Glaze Auto Parts Limited","IN643370","15.74","Equipment - Purchase","190275329","14/10/2016","Fleet Services","Fleet Management","R4000"
"Wolverhampton City Council","http://opendatacommunities.org/id/metropolitan-district-council/wolverhampton","Glaze Auto Parts Limited","IN644710","10.47","Equipment - Purchase","190275330","14/10/2016","Fleet Services","Fleet Management","R4000"
"Wolverhampton City Council","http://opendatacommunities.org/id/metropolitan-district-council/wolverhampton","Glaze Auto Parts Limited","IN644710","11.34","Equipment - Purchase","190275330","14/10/2016","Fleet Services","Fleet Management","R4000"
"Wolverhampton City Council","http://opendatacommunities.org/id/metropolitan-district-council/wolverhampton","Glaze Auto Parts Limited","IN644710","14.67","Equipment - Purchase","190275330","14/10/2016","Fleet Services","Fleet Management","R4000"
"Wolverhampton City Council","http://opendatacommunities.org/id/metropolitan-district-council/wolverhampton","Glaze Auto Parts Limited","IN644710","36.15","Equipment - Purchase","190275330","14/10/2016","Fleet Services","Fleet Management","R4000"
"Wolverhampton City Council","http://opendatacommunities.org/id/metropolitan-district-council/wolverhampton","Glaze Auto Parts Limited","IN644710","29.64","Equipment - Purchase","190275330","14/10/2016","Fleet Services","Fleet Management","R4000"
"Wolverhampton City Council","http://opendatacommunities.org/id/metropolitan-district-council/wolverhampton","Greenhous Commercials Limited","13441751","10.66","Equipment - Purchase","190272266","05/10/2016","Fleet Services","Fleet Management","R4000"
"Wolverhampton City Council","http://opendatacommunities.org/id/metropolitan-district-council/wolverhampton","Greenhous Commercials Limited","13441751","1.43","Equipment - Purchase","190272266","05/10/2016","Fleet Services","Fleet Management","R4000"
"Wolverhampton City Council","http://opendatacommunities.org/id/metropolitan-district-council/wolverhampton","Greenhous Commercials Limited","13441751","2.27","Equipment - Purchase","190272266","05/10/2016","Fleet Services","Fleet Management","R4000"
"Wolverhampton City Council","http://opendatacommunities.org/id/metropolitan-district-council/wolverhampton","Greenhous Commercials Limited","13667649","35","MOT & HGV Tests","190272778","07/10/2016","Fleet Services","Fleet Management","R3005"
"Wolverhampton City Council","http://opendatacommunities.org/id/metropolitan-district-council/wolverhampton","Greenhous Commercials Limited","13667649","91","MOT & HGV Tests","190272778","07/10/2016","Fleet Services","Fleet Management","R3005"
"Wolverhampton City Council","http://opendatacommunities.org/id/metropolitan-district-council/wolverhampton","Greenhous Commercials Limited","13667650","35","MOT & HGV Tests","190272779","07/10/2016","Fleet Services","Fleet Management","R3005"
"Wolverhampton City Council","http://opendatacommunities.org/id/metropolitan-district-council/wolverhampton","Greenhous Commercials Limited","13667650","91","MOT & HGV Tests","190272779","07/10/2016","Fleet Services","Fleet Management","R3005"
"Wolverhampton City Council","http://opendatacommunities.org/id/metropolitan-district-council/wolverhampton","Greenhous Commercials Limited","13667645","35","MOT & HGV Tests","190272774","07/10/2016","Fleet Services","Fleet Management","R3005"
"Wolverhampton City Council","http://opendatacommunities.org/id/metropolitan-district-council/wolverhampton","Greenhous Commercials Limited","13667645","113","MOT & HGV Tests","190272774","07/10/2016","Fleet Services","Fleet Management","R3005"
"Wolverhampton City Council","http://opendatacommunities.org/id/metropolitan-district-council/wolverhampton","Greenhous Commercials Limited","13667651","113","MOT & HGV Tests","190272780","07/10/2016","Fleet Services","Fleet Management","R3005"
"Wolverhampton City Council","http://opendatacommunities.org/id/metropolitan-district-council/wolverhampton","Greenhous Commercials Limited","13667651","35","MOT & HGV Tests","190272780","07/10/2016","Fleet Services","Fleet Management","R3005"
"Wolverhampton City Council","http://opendatacommunities.org/id/metropolitan-district-council/wolverhampton","Greenhous Commercials Limited","13667648","113","MOT & HGV Tests","190272777","07/10/2016","Fleet Services","Fleet Management","R3005"
"Wolverhampton City Council","http://opendatacommunities.org/id/metropolitan-district-council/wolverhampton","Greenhous Commercials Limited","13667648","35","MOT & HGV Tests","190272777","07/10/2016","Fleet Services","Fleet Management","R3005"
"Wolverhampton City Council","http://opendatacommunities.org/id/metropolitan-district-council/wolverhampton","Greenhous Commercials Limited","13667652","113","MOT & HGV Tests","190272781","07/10/2016","Fleet Services","Fleet Management","R3005"
"Wolverhampton City Council","http://opendatacommunities.org/id/metropolitan-district-council/wolverhampton","Greenhous Commercials Limited","13667652","35","MOT & HGV Tests","190272781","07/10/2016","Fleet Services","Fleet Management","R3005"
"Wolverhampton City Council","http://opendatacommunities.org/id/metropolitan-district-council/wolverhampton","Greenhous Commercials Limited","13667646","35","MOT & HGV Tests","190272775","07/10/2016","Fleet Services","Fleet Management","R3005"
"Wolverhampton City Council","http://opendatacommunities.org/id/metropolitan-district-council/wolverhampton","Greenhous Commercials Limited","13667646","91","MOT & HGV Tests","190272775","07/10/2016","Fleet Services","Fleet Management","R3005"
"Wolverhampton City Council","http://opendatacommunities.org/id/metropolitan-district-council/wolverhampton","Greenhous Commercials Limited","13667647","91","MOT & HGV Tests","190272776","07/10/2016","Fleet Services","Fleet Management","R3005"
"Wolverhampton City Council","http://opendatacommunities.org/id/metropolitan-district-council/wolverhampton","Greenhous Commercials Limited","13667647","35","MOT & HGV Tests","190272776","07/10/2016","Fleet Services","Fleet Management","R3005"
"Wolverhampton City Council","http://opendatacommunities.org/id/metropolitan-district-council/wolverhampton","Greenhous Commercials Limited","13667653","91","MOT & HGV Tests","190272782","07/10/2016","Fleet Services","Fleet Management","R3005"
"Wolverhampton City Council","http://opendatacommunities.org/id/metropolitan-district-council/wolverhampton","Greenhous Commercials Limited","13667653","35","MOT & HGV Tests","190272782","07/10/2016","Fleet Services","Fleet Management","R3005"
"Wolverhampton City Council","http://opendatacommunities.org/id/metropolitan-district-council/wolverhampton","Greenhous Commercials Limited","13667654","35","MOT & HGV Tests","190272783","07/10/2016","Fleet Services","Fleet Management","R3005"
"Wolverhampton City Council","http://opendatacommunities.org/id/metropolitan-district-council/wolverhampton","Greenhous Commercials Limited","13667654","91","MOT & HGV Tests","190272783","07/10/2016","Fleet Services","Fleet Management","R3005"
"Wolverhampton City Council","http://opendatacommunities.org/id/metropolitan-district-council/wolverhampton","Greenhous Commercials Limited","13442947","25.12","Equipment - Purchase","190273383","07/10/2016","Fleet Services","Fleet Management","R4000"
"Wolverhampton City Council","http://opendatacommunities.org/id/metropolitan-district-council/wolverhampton","Greenhous Commercials Limited","13443444","31.58","Equipment - Purchase","190273384","07/10/2016","Fleet Services","Fleet Management","R4000"
"Wolverhampton City Council","http://opendatacommunities.org/id/metropolitan-district-council/wolverhampton","Greenhous Commercials Limited","13444037","52","Equipment - Purchase","190273386","07/10/2016","Fleet Services","Fleet Management","R4000"
"Wolverhampton City Council","http://opendatacommunities.org/id/metropolitan-district-council/wolverhampton","Greenhous Commercials Limited","13444037","138.34","Equipment - Purchase","190273386","07/10/2016","Fleet Services","Fleet Management","R4000"
"Wolverhampton City Council","http://opendatacommunities.org/id/metropolitan-district-council/wolverhampton","Greenhous Commercials Limited","13444351","14.79","Equipment - Purchase","190273387","07/10/2016","Fleet Services","Fleet Management","R4000"
"Wolverhampton City Council","http://opendatacommunities.org/id/metropolitan-district-council/wolverhampton","Greenhous Commercials Limited","13443468","11.74","Equipment - Purchase","190273385","07/10/2016","Fleet Services","Fleet Management","R4000"
"Wolverhampton City Council","http://opendatacommunities.org/id/metropolitan-district-council/wolverhampton","Greenhous Commercials Limited","13444627","73","Equipment - Purchase","190273388","07/10/2016","Fleet Services","Fleet Management","R4000"
"Wolverhampton City Council","http://opendatacommunities.org/id/metropolitan-district-council/wolverhampton","Greenhous Commercials Limited","13444627","5.87","Equipment - Purchase","190273388","07/10/2016","Fleet Services","Fleet Management","R4000"
"Wolverhampton City Council","http://opendatacommunities.org/id/metropolitan-district-council/wolverhampton","Greenhous Commercials Limited","13444627","1.88","Equipment - Purchase","190273388","07/10/2016","Fleet Services","Fleet Management","R4000"
"Wolverhampton City Council","http://opendatacommunities.org/id/metropolitan-district-council/wolverhampton","Greenhous Commercials Limited","13444627","9.65","Equipment - Purchase","190273388","07/10/2016","Fleet Services","Fleet Management","R4000"
"Wolverhampton City Council","http://opendatacommunities.org/id/metropolitan-district-council/wolverhampton","Greenhous Commercials Limited","13444627","49.5","Equipment - Purchase","190273388","07/10/2016","Fleet Services","Fleet Management","R4000"
"Wolverhampton City Council","http://opendatacommunities.org/id/metropolitan-district-council/wolverhampton","Greenhous Commercials Limited","13446392","54","Equipment - Purchase","190273390","07/10/2016","Fleet Services","Fleet Management","R4000"
"Wolverhampton City Council","http://opendatacommunities.org/id/metropolitan-district-council/wolverhampton","Greenhous Commercials Limited","13445134","40.81","Equipment - Purchase","190273389","07/10/2016","Fleet Services","Fleet Management","R4000"
"Wolverhampton City Council","http://opendatacommunities.org/id/metropolitan-district-council/wolverhampton","Greenhous Commercials Limited","13445134","42.72","Equipment - Purchase","190273389","07/10/2016","Fleet Services","Fleet Management","R4000"
"Wolverhampton City Council","http://opendatacommunities.org/id/metropolitan-district-council/wolverhampton","Greenhous Commercials Limited","13445134","14.79","Equipment - Purchase","190273389","07/10/2016","Fleet Services","Fleet Management","R4000"
"Wolverhampton City Council","http://opendatacommunities.org/id/metropolitan-district-council/wolverhampton","Greenhous Commercials Limited","1300860","-150","Equipment - Purchase","190274652","12/10/2016","Fleet Services","Fleet Management","R4000"
"Wolverhampton City Council","http://opendatacommunities.org/id/metropolitan-district-council/wolverhampton","Greenhous Commercials Limited","13442193","3","Equipment - Purchase","190274653","12/10/2016","Fleet Services","Fleet Management","R4000"
"Wolverhampton City Council","http://opendatacommunities.org/id/metropolitan-district-council/wolverhampton","Greenhous Commercials Limited","13442193","6.2","Equipment - Purchase","190274653","12/10/2016","Fleet Services","Fleet Management","R4000"
"Wolverhampton City Council","http://opendatacommunities.org/id/metropolitan-district-council/wolverhampton","Greenhous Commercials Limited","13442193","2.8","Equipment - Purchase","190274653","12/10/2016","Fleet Services","Fleet Management","R4000"
"Wolverhampton City Council","http://opendatacommunities.org/id/metropolitan-district-council/wolverhampton","Greenhous Commercials Limited","13442193","7.92","Equipment - Purchase","190274653","12/10/2016","Fleet Services","Fleet Management","R4000"
"Wolverhampton City Council","http://opendatacommunities.org/id/metropolitan-district-council/wolverhampton","Greenhous Commercials Limited","13442193","5.28","Equipment - Purchase","190274653","12/10/2016","Fleet Services","Fleet Management","R4000"
"Wolverhampton City Council","http://opendatacommunities.org/id/metropolitan-district-council/wolverhampton","Greenhous Commercials Limited","13442193","24","Equipment - Purchase","190274653","12/10/2016","Fleet Services","Fleet Management","R4000"
"Wolverhampton City Council","http://opendatacommunities.org/id/metropolitan-district-council/wolverhampton","Greenhous Commercials Limited","13442193","35","Equipment - Purchase","190274653","12/10/2016","Fleet Services","Fleet Management","R4000"
"Wolverhampton City Council","http://opendatacommunities.org/id/metropolitan-district-council/wolverhampton","Greenhous Commercials Limited","13442193","4","Equipment - Purchase","190274653","12/10/2016","Fleet Services","Fleet Management","R4000"
"Wolverhampton City Council","http://opendatacommunities.org/id/metropolitan-district-council/wolverhampton","Greenhous Commercials Limited","13442193","9.36","Equipment - Purchase","190274653","12/10/2016","Fleet Services","Fleet Management","R4000"
"Wolverhampton City Council","http://opendatacommunities.org/id/metropolitan-district-council/wolverhampton","Greenhous Commercials Limited","13442193","13.12","Equipment - Purchase","190274653","12/10/2016","Fleet Services","Fleet Management","R4000"
"Wolverhampton City Council","http://opendatacommunities.org/id/metropolitan-district-council/wolverhampton","Greenhous Commercials Limited","13442193","10","Equipment - Purchase","190274653","12/10/2016","Fleet Services","Fleet Management","R4000"
"Wolverhampton City Council","http://opendatacommunities.org/id/metropolitan-district-council/wolverhampton","Greenhous Commercials Limited","13446879","30.21","Equipment - Purchase","190274654","12/10/2016","Fleet Services","Fleet Management","R4000"
"Wolverhampton City Council","http://opendatacommunities.org/id/metropolitan-district-council/wolverhampton","Greenhous Commercials Limited","13446879","20.14","Equipment - Purchase","190274654","12/10/2016","Fleet Services","Fleet Management","R4000"
"Wolverhampton City Council","http://opendatacommunities.org/id/metropolitan-district-council/wolverhampton","Greenhous Commercials Limited","13448329","11.28","Equipment - Purchase","190274655","12/10/2016","Fleet Services","Fleet Management","R4000"
"Wolverhampton City Council","http://opendatacommunities.org/id/metropolitan-district-council/wolverhampton","Greenhous Commercials Limited","13668092","54","Services - Professional Fees","190274657","12/10/2016","Fleet Services","Fleet Management","R4400"
"Wolverhampton City Council","http://opendatacommunities.org/id/metropolitan-district-council/wolverhampton","Greenhous Commercials Limited","13668092","15","Services - Professional Fees","190274657","12/10/2016","Fleet Services","Fleet Management","R4400"
"Wolverhampton City Council","http://opendatacommunities.org/id/metropolitan-district-council/wolverhampton","Greenhous Commercials Limited","13668092","525","Services - Professional Fees","190274657","12/10/2016","Fleet Services","Fleet Management","R4400"
"Wolverhampton City Council","http://opendatacommunities.org/id/metropolitan-district-council/wolverhampton","Greenhous Commercials Limited","13668092","57.75","Services - Professional Fees","190274657","12/10/2016","Fleet Services","Fleet Management","R4400"
"Wolverhampton City Council","http://opendatacommunities.org/id/metropolitan-district-council/wolverhampton","Greenhous Commercials Limited","13668092","45","Services - Professional Fees","190274657","12/10/2016","Fleet Services","Fleet Management","R4400"
"Wolverhampton City Council","http://opendatacommunities.org/id/metropolitan-district-council/wolverhampton","Greenhous Commercials Limited","13667274","45","Services - Professional Fees","190274656","12/10/2016","Fleet Services","Fleet Management","R4400"
"Wolverhampton City Council","http://opendatacommunities.org/id/metropolitan-district-council/wolverhampton","Greenhous Commercials Limited","13667274","15","Services - Professional Fees","190274656","12/10/2016","Fleet Services","Fleet Management","R4400"
"Wolverhampton City Council","http://opendatacommunities.org/id/metropolitan-district-council/wolverhampton","Greenhous Commercials Limited","13669086","173.25","Services - Professional Fees","190274659","12/10/2016","Fleet Services","Fleet Management","R4400"
"Wolverhampton City Council","http://opendatacommunities.org/id/metropolitan-district-council/wolverhampton","Greenhous Commercials Limited","13668235","173.25","Services - Professional Fees","190274658","12/10/2016","Fleet Services","Fleet Management","R4400"
"Wolverhampton City Council","http://opendatacommunities.org/id/metropolitan-district-council/wolverhampton","Greenhous Commercials Limited","13668235","35.62","Services - Professional Fees","190274658","12/10/2016","Fleet Services","Fleet Management","R4400"
"Wolverhampton City Council","http://opendatacommunities.org/id/metropolitan-district-council/wolverhampton","Greenhous Commercials Limited","13669086","274","Services - Professional Fees","190274659","12/10/2016","Fleet Services","Fleet Management","R4400"
"Wolverhampton City Council","http://opendatacommunities.org/id/metropolitan-district-council/wolverhampton","Greenhous Commercials Limited","13669086","3.5","Services - Professional Fees","190274659","12/10/2016","Fleet Services","Fleet Management","R4400"
"Wolverhampton City Council","http://opendatacommunities.org/id/metropolitan-district-council/wolverhampton","Greenhous Commercials Limited","13669086","4.6","Services - Professional Fees","190274659","12/10/2016","Fleet Services","Fleet Management","R4400"
"Wolverhampton City Council","http://opendatacommunities.org/id/metropolitan-district-council/wolverhampton","Greenhous Commercials Limited","13669086","0.54","Services - Professional Fees","190274659","12/10/2016","Fleet Services","Fleet Management","R4400"
"Wolverhampton City Council","http://opendatacommunities.org/id/metropolitan-district-council/wolverhampton","Greenhous Commercials Limited","13669086","7.77","Services - Professional Fees","190274659","12/10/2016","Fleet Services","Fleet Management","R4400"
"Wolverhampton City Council","http://opendatacommunities.org/id/metropolitan-district-council/wolverhampton","Greenhous Commercials Limited","13669086","144.38","Services - Professional Fees","190274659","12/10/2016","Fleet Services","Fleet Management","R4400"
"Wolverhampton City Council","http://opendatacommunities.org/id/metropolitan-district-council/wolverhampton","Greenhous Commercials Limited","13669086","36.03","Services - Professional Fees","190274659","12/10/2016","Fleet Services","Fleet Management","R4400"
"Wolverhampton City Council","http://opendatacommunities.org/id/metropolitan-district-council/wolverhampton","Greenhous Commercials Limited","13450243","48.5","Equipment - Purchase","190277637","21/10/2016","Fleet Services","Fleet Management","R4000"
"Wolverhampton City Council","http://opendatacommunities.org/id/metropolitan-district-council/wolverhampton","Greenhous Commercials Limited","13448712","39.75","Equipment - Purchase","190277636","21/10/2016","Fleet Services","Fleet Management","R4000"
"Wolverhampton City Council","http://opendatacommunities.org/id/metropolitan-district-council/wolverhampton","Greenhous Commercials Limited","13669413","15","Services - Professional Fees","190277639","21/10/2016","Fleet Services","Fleet Management","R4400"
"Wolverhampton City Council","http://opendatacommunities.org/id/metropolitan-district-council/wolverhampton","Greenhous Commercials Limited","13669331","72.19","Services - Professional Fees","190277638","21/10/2016","Fleet Services","Fleet Management","R4400"
"Wolverhampton City Council","http://opendatacommunities.org/id/metropolitan-district-council/wolverhampton","Greenhous Commercials Limited","13669413","65","Services - Professional Fees","190277639","21/10/2016","Fleet Services","Fleet Management","R4400"
"Wolverhampton City Council","http://opendatacommunities.org/id/metropolitan-district-council/wolverhampton","Greenhous Commercials Limited","13669453","45","Services - Professional Fees","190277641","21/10/2016","Fleet Services","Fleet Management","R4400"
"Wolverhampton City Council","http://opendatacommunities.org/id/metropolitan-district-council/wolverhampton","Greenhous Commercials Limited","13669453","15","Services - Professional Fees","190277641","21/10/2016","Fleet Services","Fleet Management","R4400"
"Wolverhampton City Council","http://opendatacommunities.org/id/metropolitan-district-council/wolverhampton","Greenhous Commercials Limited","13669414","15","Services - Professional Fees","190277640","21/10/2016","Fleet Services","Fleet Management","R4400"
"Wolverhampton City Council","http://opendatacommunities.org/id/metropolitan-district-council/wolverhampton","Greenhous Commercials Limited","13669414","45","Services - Professional Fees","190277640","21/10/2016","Fleet Services","Fleet Management","R4400"
"Wolverhampton City Council","http://opendatacommunities.org/id/metropolitan-district-council/wolverhampton","Greenhous Commercials Limited","13659996","57.75","Services - Professional Fees","190277092","21/10/2016","Fleet Services","Fleet Management","R4400"
"Wolverhampton City Council","http://opendatacommunities.org/id/metropolitan-district-council/wolverhampton","Greenhous Commercials Limited","13447414","37.98","Equipment - Purchase","190277090","21/10/2016","Fleet Services","Fleet Management","R4000"
"Wolverhampton City Council","http://opendatacommunities.org/id/metropolitan-district-council/wolverhampton","Greenhous Commercials Limited","13447385","28.33","Equipment - Purchase","190277089","21/10/2016","Fleet Services","Fleet Management","R4000"
"Wolverhampton City Council","http://opendatacommunities.org/id/metropolitan-district-council/wolverhampton","Greenhous Commercials Limited","13448938","28.2","Equipment - Purchase","190277091","21/10/2016","Fleet Services","Fleet Management","R4000"
"Wolverhampton City Council","http://opendatacommunities.org/id/metropolitan-district-council/wolverhampton","Greenhous Commercials Limited","13447371","11.75","Equipment - Purchase","190277088","21/10/2016","Fleet Services","Fleet Management","R4000"
"Wolverhampton City Council","http://opendatacommunities.org/id/metropolitan-district-council/wolverhampton","Greenhous Commercials Limited","13429838","98.64","Equipment - Purchase","190277087","21/10/2016","Fleet Services","Fleet Management","R4000"
"Wolverhampton City Council","http://opendatacommunities.org/id/metropolitan-district-council/wolverhampton","Greenhous Commercials Limited","13659996","5.78","Services - Professional Fees","190277092","21/10/2016","Fleet Services","Fleet Management","R4400"
"Wolverhampton City Council","http://opendatacommunities.org/id/metropolitan-district-council/wolverhampton","Greenhous Commercials Limited","13659996","15","Services - Professional Fees","190277092","21/10/2016","Fleet Services","Fleet Management","R4400"
"Wolverhampton City Council","http://opendatacommunities.org/id/metropolitan-district-council/wolverhampton","Greenhous Commercials Limited","13659996","3.52","Services - Professional Fees","190277092","21/10/2016","Fleet Services","Fleet Management","R4400"
"Wolverhampton City Council","http://opendatacommunities.org/id/metropolitan-district-council/wolverhampton","Greenhous Commercials Limited","13659996","50","Services - Professional Fees","190277092","21/10/2016","Fleet Services","Fleet Management","R4400"
"Wolverhampton City Council","http://opendatacommunities.org/id/metropolitan-district-council/wolverhampton","Greenhous Commercials Limited","13659996","7.32","Services - Professional Fees","190277092","21/10/2016","Fleet Services","Fleet Management","R4400"
"Wolverhampton City Council","http://opendatacommunities.org/id/metropolitan-district-council/wolverhampton","Greenhous Commercials Limited","13448647","5.64","Equipment - Purchase","190277635","21/10/2016","Fleet Services","Fleet Management","R4000"
"Wolverhampton City Council","http://opendatacommunities.org/id/metropolitan-district-council/wolverhampton","Greenhous Commercials Limited","13669510","65","Services - Professional Fees","190277642","21/10/2016","Fleet Services","Fleet Management","R4400"
"Wolverhampton City Council","http://opendatacommunities.org/id/metropolitan-district-council/wolverhampton","Greenhous Commercials Limited","13669510","15","Services - Professional Fees","190277642","21/10/2016","Fleet Services","Fleet Management","R4400"
"Wolverhampton City Council","http://opendatacommunities.org/id/metropolitan-district-council/wolverhampton","Greenhous Commercials Limited","13669085","50","Services - Professional Fees","190275247","14/10/2016","Fleet Services","Fleet Management","R4400"
"Wolverhampton City Council","http://opendatacommunities.org/id/metropolitan-district-council/wolverhampton","Greenhous Commercials Limited","13669085","71.39","Services - Professional Fees","190275247","14/10/2016","Fleet Services","Fleet Management","R4400"
"Wolverhampton City Council","http://opendatacommunities.org/id/metropolitan-district-council/wolverhampton","Greenhous Commercials Limited","13668527","68","Services - Professional Fees","190275245","14/10/2016","Fleet Services","Fleet Management","R4400"
"Wolverhampton City Council","http://opendatacommunities.org/id/metropolitan-district-council/wolverhampton","Greenhous Commercials Limited","13668527","15","Services - Professional Fees","190275245","14/10/2016","Fleet Services","Fleet Management","R4400"
"Wolverhampton City Council","http://opendatacommunities.org/id/metropolitan-district-council/wolverhampton","Greenhous Commercials Limited","13668527","65","Services - Professional Fees","190275245","14/10/2016","Fleet Services","Fleet Management","R4400"
"Wolverhampton City Council","http://opendatacommunities.org/id/metropolitan-district-council/wolverhampton","Greenhous Commercials Limited","13668552","65","Services - Professional Fees","190275246","14/10/2016","Fleet Services","Fleet Management","R4400"
"Wolverhampton City Council","http://opendatacommunities.org/id/metropolitan-district-council/wolverhampton","Greenhous Commercials Limited","13667841","45","Services - Professional Fees","190275243","14/10/2016","Fleet Services","Fleet Management","R4400"
"Wolverhampton City Council","http://opendatacommunities.org/id/metropolitan-district-council/wolverhampton","Greenhous Commercials Limited","13668026","50","Services - Professional Fees","190275244","14/10/2016","Fleet Services","Fleet Management","R4400"
"Wolverhampton City Council","http://opendatacommunities.org/id/metropolitan-district-council/wolverhampton","Greenhous Commercials Limited","13668552","15","Services - Professional Fees","190275246","14/10/2016","Fleet Services","Fleet Management","R4400"
"Wolverhampton City Council","http://opendatacommunities.org/id/metropolitan-district-council/wolverhampton","Greenhous Commercials Limited","13444469","225","Equipment - Purchase","190275237","14/10/2016","Fleet Services","Fleet Management","R4000"
"Wolverhampton City Council","http://opendatacommunities.org/id/metropolitan-district-council/wolverhampton","Greenhous Commercials Limited","13444469","78","Equipment - Purchase","190275237","14/10/2016","Fleet Services","Fleet Management","R4000"
"Wolverhampton City Council","http://opendatacommunities.org/id/metropolitan-district-council/wolverhampton","Greenhous Commercials Limited","1301138","-78","Equipment - Purchase","190275236","14/10/2016","Fleet Services","Fleet Management","R4000"
"Wolverhampton City Council","http://opendatacommunities.org/id/metropolitan-district-council/wolverhampton","Greenhous Commercials Limited","13444469","74","Equipment - Purchase","190275237","14/10/2016","Fleet Services","Fleet Management","R4000"
"Wolverhampton City Council","http://opendatacommunities.org/id/metropolitan-district-council/wolverhampton","Greenhous Commercials Limited","13445337","90.93","Equipment - Purchase","190275238","14/10/2016","Fleet Services","Fleet Management","R4000"
"Wolverhampton City Council","http://opendatacommunities.org/id/metropolitan-district-council/wolverhampton","Greenhous Commercials Limited","13445615","73","Equipment - Purchase","190275239","14/10/2016","Fleet Services","Fleet Management","R4000"
"Wolverhampton City Council","http://opendatacommunities.org/id/metropolitan-district-council/wolverhampton","Greenhous Commercials Limited","13445615","49.5","Equipment - Purchase","190275239","14/10/2016","Fleet Services","Fleet Management","R4000"
"Wolverhampton City Council","http://opendatacommunities.org/id/metropolitan-district-council/wolverhampton","Greenhous Commercials Limited","13447885","66.42","Equipment - Purchase","190275240","14/10/2016","Fleet Services","Fleet Management","R4000"
"Wolverhampton City Council","http://opendatacommunities.org/id/metropolitan-district-council/wolverhampton","Greenhous Commercials Limited","13448568","5.13","Equipment - Purchase","190275241","14/10/2016","Fleet Services","Fleet Management","R4000"
"Wolverhampton City Council","http://opendatacommunities.org/id/metropolitan-district-council/wolverhampton","Greenhous Commercials Limited","13448568","4.5","Equipment - Purchase","190275241","14/10/2016","Fleet Services","Fleet Management","R4000"
"Wolverhampton City Council","http://opendatacommunities.org/id/metropolitan-district-council/wolverhampton","Guest Motors Limited","13024698","3.78","Equipment - Purchase","190272265","05/10/2016","Fleet Services","Fleet Management","R4000"
"Wolverhampton City Council","http://opendatacommunities.org/id/metropolitan-district-council/wolverhampton","Guest Motors Limited","13024694","28.31","Equipment - Purchase","190272264","05/10/2016","Fleet Services","Fleet Management","R4000"
"Wolverhampton City Council","http://opendatacommunities.org/id/metropolitan-district-council/wolverhampton","Guest Motors Limited","13024694","35.42","Equipment - Purchase","190272264","05/10/2016","Fleet Services","Fleet Management","R4000"
"Wolverhampton City Council","http://opendatacommunities.org/id/metropolitan-district-council/wolverhampton","Guest Motors Limited","13024694","21.72","Equipment - Purchase","190272264","05/10/2016","Fleet Services","Fleet Management","R4000"
"Wolverhampton City Council","http://opendatacommunities.org/id/metropolitan-district-council/wolverhampton","Guest Motors Limited","13025063","14.58","Equipment - Purchase","190273382","07/10/2016","Fleet Services","Fleet Management","R4000"
"Wolverhampton City Council","http://opendatacommunities.org/id/metropolitan-district-council/wolverhampton","Guest Motors Limited","13024884","15.27","Equipment - Purchase","190273380","07/10/2016","Fleet Services","Fleet Management","R4000"
"Wolverhampton City Council","http://opendatacommunities.org/id/metropolitan-district-council/wolverhampton","Guest Motors Limited","13024911","2.86","Equipment - Purchase","190273381","07/10/2016","Fleet Services","Fleet Management","R4000"
"Wolverhampton City Council","http://opendatacommunities.org/id/metropolitan-district-council/wolverhampton","Guest Motors Limited","13511697","82","Services - Professional Fees","190275242","14/10/2016","Fleet Services","Fleet Management","R4400"
"Wolverhampton City Council","http://opendatacommunities.org/id/metropolitan-district-council/wolverhampton","Gullivers Truck Hire Limited","1609/69676","300","Hire of Vehicles","190275258","14/10/2016","Fleet Services","Fleet Management","R3200"
"Wolverhampton City Council","http://opendatacommunities.org/id/metropolitan-district-council/wolverhampton","Guymark UK Limited","103310","417.56","Services - Assistive technology","130139812","26/10/2016","Standards and Vulnerable Pupils","SEN Sensory Inclusion","R4407"
"Wolverhampton City Council","http://opendatacommunities.org/id/metropolitan-district-council/wolverhampton","H Jenkinson & Company Ltd","SINV00731201","111.3","Equipment - Purchase","130138743","05/10/2016","Looked After Children","Adoption and Residence Team & Allowances","R4000"
"Wolverhampton City Council","http://opendatacommunities.org/id/metropolitan-district-council/wolverhampton","H Jenkinson & Company Ltd","SINV00729624","236.15","Furniture","130137458","05/10/2016","Revenues & Benefits","Benefits","R4004"
"Wolverhampton City Council","http://opendatacommunities.org/id/metropolitan-district-council/wolverhampton","H Jenkinson & Company Ltd","SINV00731196","435.6","Furniture","130138738","05/10/2016","Environmental Maintenance","Street Cleansing Overheads","R4004"
"Wolverhampton City Council","http://opendatacommunities.org/id/metropolitan-district-council/wolverhampton","H Jenkinson & Company Ltd","SINV00732163","287.66","Furniture","130139502","07/10/2016","Adult Education","Old Hall Street Main","R4004"
"Wolverhampton City Council","http://opendatacommunities.org/id/metropolitan-district-council/wolverhampton","H Jenkinson & Company Ltd","SINV00733290","458.16","Furniture","130141099","19/10/2016","Adult Education","Foyer Building","R4004"
"Wolverhampton City Council","http://opendatacommunities.org/id/metropolitan-district-council/wolverhampton","H Jenkinson & Company Ltd","SINV00735351","108.9","Furniture","130142620","28/10/2016","Facilities Management","Victoria Square, Block 11","R4004"
"Wolverhampton City Council","http://opendatacommunities.org/id/metropolitan-district-council/wolverhampton","H Jenkinson & Company Ltd","SINV00735350","338","Furniture","130142619","28/10/2016","Facilities Management","Civic Centre","R4004"
"Wolverhampton City Council","http://opendatacommunities.org/id/metropolitan-district-council/wolverhampton","H Jenkinson & Company Ltd","SINV00734994","169","Furniture","130142395","28/10/2016","Older People Assessment & Care Management","Assessment Team (North)","R4004"
"Wolverhampton City Council","http://opendatacommunities.org/id/metropolitan-district-council/wolverhampton","Hags-Smp Limited Rss Playmakers","46600","95","Equipment - R & M","130137220","07/10/2016","Environmental Maintenance","Parks - East Area Management","R4003"
"Wolverhampton City Council","http://opendatacommunities.org/id/metropolitan-district-council/wolverhampton","Hags-Smp Limited Rss Playmakers","47038","1,804.00","Equipment - R & M","130141586","26/10/2016","Environmental Maintenance","Parks - East Area Management","R4003"
"Wolverhampton City Council","http://opendatacommunities.org/id/metropolitan-district-council/wolverhampton","Hags-Smp Limited Rss Playmakers","47027","802.5","Equipment - R & M","130141585","26/10/2016","Environmental Maintenance","Parks - East Area Management","R4003"
"Wolverhampton City Council","http://opendatacommunities.org/id/metropolitan-district-council/wolverhampton","Hags-Smp Limited Rss Playmakers","46926","45","Equipment - R & M","130140213","26/10/2016","Environmental Maintenance","Parks - East Area Management","R4003"
"Wolverhampton City Council","http://opendatacommunities.org/id/metropolitan-district-council/wolverhampton","Hags-Smp Limited Rss Playmakers","47116","67.68","Equipment - R & M","130140215","26/10/2016","Environmental Maintenance","Parks - East Area Management","R4003"
"Wolverhampton City Council","http://opendatacommunities.org/id/metropolitan-district-council/wolverhampton","Hags-Smp Limited Rss Playmakers","46927","233.2","Equipment - R & M","130140214","26/10/2016","Environmental Maintenance","Parks - East Area Management","R4003"
"Wolverhampton City Council","http://opendatacommunities.org/id/metropolitan-district-council/wolverhampton","Hags-Smp Limited Rss Playmakers","46034","75","Equipment - R & M","130140211","12/10/2016","Environmental Maintenance","Parks - East Area Management","R4003"
"Wolverhampton City Council","http://opendatacommunities.org/id/metropolitan-district-council/wolverhampton","Hags-Smp Limited Rss Playmakers","46855","22.8","Equipment - R & M","130141584","21/10/2016","Environmental Maintenance","Parks - East Area Management","R4003"
"Wolverhampton City Council","http://opendatacommunities.org/id/metropolitan-district-council/wolverhampton","Hags-Smp Limited Rss Playmakers","46777","405","Equipment - R & M","130140212","14/10/2016","Environmental Maintenance","Parks - East Area Management","R4003"
"Wolverhampton City Council","http://opendatacommunities.org/id/metropolitan-district-council/wolverhampton","Hays Specialist Recruitment Limited","1006689721","2,605.80","Services - Professional Fees","130139114","05/10/2016","The Hub","Payroll/HR","R4400"
"Wolverhampton City Council","http://opendatacommunities.org/id/metropolitan-district-council/wolverhampton","Hays Specialist Recruitment Limited","1006732527","1,246.90","Agency Staff","130131401","05/10/2016","Estates and Valuations","Estates and Valuations Team","R1100"
"Wolverhampton City Council","http://opendatacommunities.org/id/metropolitan-district-council/wolverhampton","Hays Specialist Recruitment Limited","1006869302","583.68","Agency Staff","130137370","07/10/2016","The Hub","Payments Team","R1100"
"Wolverhampton City Council","http://opendatacommunities.org/id/metropolitan-district-council/wolverhampton","Hays Specialist Recruitment Limited","1006861567","512.47","Agency Staff","130137222","07/10/2016","The Hub","Payroll/HR","R1100"
"Wolverhampton City Council","http://opendatacommunities.org/id/metropolitan-district-council/wolverhampton","Hays Specialist Recruitment Limited","1006861569","710.75","Agency Staff","130137223","07/10/2016","The Hub","Payroll/HR","R1100"
"Wolverhampton City Council","http://opendatacommunities.org/id/metropolitan-district-council/wolverhampton","Hays Specialist Recruitment Limited","1006906983","664.32","Agency Staff","130138925","26/10/2016","The Hub","Payments Team","R1100"
"Wolverhampton City Council","http://opendatacommunities.org/id/metropolitan-district-council/wolverhampton","Hays Specialist Recruitment Limited","1006900515","512.47","Agency Staff","130138923","26/10/2016","The Hub","Payroll/HR","R1100"
"Wolverhampton City Council","http://opendatacommunities.org/id/metropolitan-district-council/wolverhampton","Hays Specialist Recruitment Limited","1006900517","710.75","Agency Staff","130138924","26/10/2016","The Hub","Payroll/HR","R1100"
"Wolverhampton City Council","http://opendatacommunities.org/id/metropolitan-district-council/wolverhampton","Hays Specialist Recruitment Limited","1006884092","27.64","Services - Professional Fees","130142140","26/10/2016","Early Intervention","EIP Locality 1","R4400"
"Wolverhampton City Council","http://opendatacommunities.org/id/metropolitan-district-council/wolverhampton","Hays Specialist Recruitment Limited","1006881379","512.47","Agency Staff","130138113","14/10/2016","The Hub","Payroll/HR","R1100"
"Wolverhampton City Council","http://opendatacommunities.org/id/metropolitan-district-council/wolverhampton","Hays Specialist Recruitment Limited","1006881381","576.32","Agency Staff","130138114","14/10/2016","The Hub","Payroll/HR","R1100"
"Wolverhampton City Council","http://opendatacommunities.org/id/metropolitan-district-council/wolverhampton","Hays Specialist Recruitment Limited","1006888605","387.84","Agency Staff","130138115","14/10/2016","The Hub","Payments Team","R1100"
"Wolverhampton City Council","http://opendatacommunities.org/id/metropolitan-district-council/wolverhampton","Headway Black Country","2.32E+11","200","TPP - Day Care","190276029","19/10/2016","Physical Disabilities Assessment","PD Care Purchasing (Spot Placements)","R5430"
"Wolverhampton City Council","http://opendatacommunities.org/id/metropolitan-district-council/wolverhampton","Headway Black Country","2.32E+11","200","TPP - Day Care","190276027","19/10/2016","Physical Disabilities Assessment","PD Care Purchasing (Spot Placements)","R5430"
"Wolverhampton City Council","http://opendatacommunities.org/id/metropolitan-district-council/wolverhampton","Headway Black Country","2.32E+11","200","TPP - Day Care","190276027","19/10/2016","Physical Disabilities Assessment","PD Care Purchasing (Spot Placements)","R5430"
"Wolverhampton City Council","http://opendatacommunities.org/id/metropolitan-district-council/wolverhampton","Headway Black Country","2.32E+11","400","TPP - Day Care","190276028","19/10/2016","Physical Disabilities Assessment","PD Care Purchasing (Spot Placements)","R5430"
"Wolverhampton City Council","http://opendatacommunities.org/id/metropolitan-district-council/wolverhampton","Headway Black Country","2.32E+11","120","TPP - Day Care","190276026","19/10/2016","Physical Disabilities Assessment","PD Care Purchasing (Spot Placements)","R5430"
"Wolverhampton City Council","http://opendatacommunities.org/id/metropolitan-district-council/wolverhampton","Headway Black Country","2.31E+11","400","TPP - Day Care","190276025","19/10/2016","Physical Disabilities Assessment","PD Care Purchasing (Spot Placements)","R5430"
"Wolverhampton City Council","http://opendatacommunities.org/id/metropolitan-district-council/wolverhampton","Higgs & Sons Solicitors","74899324","477","Services - Professional Fees","130141432","26/10/2016","Human Resources","HR Advice","R4400"
"Wolverhampton City Council","http://opendatacommunities.org/id/metropolitan-district-council/wolverhampton","Hills Coaches Limited","29266","220","Subsistence","130138521","07/10/2016","Strategic Director Place","City Marketing (Place)","R4610"
"Wolverhampton City Council","http://opendatacommunities.org/id/metropolitan-district-council/wolverhampton","Hills Coaches Limited","29447","700","Client Transport","130142187","26/10/2016","Early Intervention","EIP Locality 2","R3042"
"Wolverhampton City Council","http://opendatacommunities.org/id/metropolitan-district-council/wolverhampton","Hills Coaches Limited","29425","800","Client Transport","130141620","26/10/2016","School Planning & Resources","Towers Outdoor Education Centre","R3042"
"Wolverhampton City Council","http://opendatacommunities.org/id/metropolitan-district-council/wolverhampton","Hills Coaches Limited","29341","2,460.00","Client Transport","130138961","12/10/2016","School Planning & Resources","Special - Transport","R3042"
"Wolverhampton City Council","http://opendatacommunities.org/id/metropolitan-district-council/wolverhampton","Hills Coaches Limited","29219","820","Client Transport","130137826","12/10/2016","School Planning & Resources","Towers Outdoor Education Centre","R3042"
"Wolverhampton City Council","http://opendatacommunities.org/id/metropolitan-district-council/wolverhampton","Hills Coaches Limited","29281","1,200.00","Client Transport","130138809","12/10/2016","School Planning & Resources","Towers Outdoor Education Centre","R3042"
"Wolverhampton City Council","http://opendatacommunities.org/id/metropolitan-district-council/wolverhampton","Hills Coaches Limited","29282","800","Client Transport","130138810","12/10/2016","School Planning & Resources","Towers Outdoor Education Centre","R3042"
"Wolverhampton City Council","http://opendatacommunities.org/id/metropolitan-district-council/wolverhampton","Hills Coaches Limited","29415","350","Hire of Vehicles","130141187","19/10/2016","Standards and Vulnerable Pupils","SACRE","R3200"
"Wolverhampton City Council","http://opendatacommunities.org/id/metropolitan-district-council/wolverhampton","Hilton Main Construction Limited","28829","625.2","R&M - Departmental response (external)","130138350","05/10/2016","Highways Maintenance","Patching","R2003"
"Wolverhampton City Council","http://opendatacommunities.org/id/metropolitan-district-council/wolverhampton","Hilton Main Construction Limited","28827","1,575.00","R&M - Departmental response (external)","130138348","05/10/2016","Highways Maintenance","Patching","R2003"
"Wolverhampton City Council","http://opendatacommunities.org/id/metropolitan-district-council/wolverhampton","Hilton Main Construction Limited","28828","1,940.00","R&M - Departmental response (external)","130138349","05/10/2016","Highways Maintenance","Patching","R2003"
"Wolverhampton City Council","http://opendatacommunities.org/id/metropolitan-district-council/wolverhampton","Hilton Main Construction Limited","117","825","Construction and Conversion","130137233","07/10/2016","","Safety Programme","C1100"
"Wolverhampton City Council","http://opendatacommunities.org/id/metropolitan-district-council/wolverhampton","Hilton Main Construction Limited","28799","2,953.56","R&M - Departmental response (external)","130137515","07/10/2016","Facilities Management","Management of Vacant Properties","R2003"
"Wolverhampton City Council","http://opendatacommunities.org/id/metropolitan-district-council/wolverhampton","Hilton Main Construction Limited","28801","714.75","R&M - Departmental response (external)","130137516","07/10/2016","Operation & Maintenance of Existing Network","Public Rights of Way (CROW Act 2000)","R2003"
"Wolverhampton City Council","http://opendatacommunities.org/id/metropolitan-district-council/wolverhampton","Hilton Main Construction Limited","28797","8,661.90","External Professional Fees","130137514","07/10/2016","","Bilston Urban Village","C6002"
"Wolverhampton City Council","http://opendatacommunities.org/id/metropolitan-district-council/wolverhampton","Hilton Main Construction Limited","28796","1,477.70","R&M - Departmental response (external)","130137513","07/10/2016","Highways Maintenance","Patching","R2003"
"Wolverhampton City Council","http://opendatacommunities.org/id/metropolitan-district-council/wolverhampton","Hilton Main Construction Limited","28894","6,909.96","R&M - Departmental response (external)","130139345","26/10/2016","Highways Maintenance","Fencing & Guard Rails","R2003"
"Wolverhampton City Council","http://opendatacommunities.org/id/metropolitan-district-council/wolverhampton","Hilton Main Construction Limited","28893","712.8","R&M - Departmental response (external)","130139344","26/10/2016","Highways Maintenance","Planned Highways Maintenance","R2003"
"Wolverhampton City Council","http://opendatacommunities.org/id/metropolitan-district-council/wolverhampton","Hilton Main Construction Limited","74","690","Construction and Conversion","130139507","12/10/2016","","Active Travel Programme","C1100"
"Wolverhampton City Council","http://opendatacommunities.org/id/metropolitan-district-council/wolverhampton","Hilton Main Construction Limited","28906","635.76","R&M - Departmental response (external)","130140042","21/10/2016","Highways Maintenance","Patching","R2003"
"Wolverhampton City Council","http://opendatacommunities.org/id/metropolitan-district-council/wolverhampton","Hilton Main Construction Limited","28907","1,575.00","R&M - Departmental response (external)","130140043","21/10/2016","Highways Maintenance","Patching","R2003"
"Wolverhampton City Council","http://opendatacommunities.org/id/metropolitan-district-council/wolverhampton","Hilton Main Construction Limited","28908","1,550.50","R&M - Departmental response (external)","130140044","21/10/2016","Highways Maintenance","Patching","R2003"
"Wolverhampton City Council","http://opendatacommunities.org/id/metropolitan-district-council/wolverhampton","Hilton Main Construction Limited","28275","-5,141.70","R&M - Departmental response (external)","130141394","21/10/2016","Street Lighting","Signs Illuminated","R2003"
"Wolverhampton City Council","http://opendatacommunities.org/id/metropolitan-district-council/wolverhampton","Hilton Main Construction Limited","28849","7,430.26","Construction and Conversion","130138672","21/10/2016","","City Centre Transport & Movement Enhancements","C1100"
"Wolverhampton City Council","http://opendatacommunities.org/id/metropolitan-district-council/wolverhampton","Hilton Main Construction Limited","28850","1,202.54","R&M - Departmental response (external)","130138673","21/10/2016","Facilities Management","Civic Centre","R2003"
"Wolverhampton City Council","http://opendatacommunities.org/id/metropolitan-district-council/wolverhampton","Hilton Main Construction Limited","28843","570","R&M - Departmental planned (external)","130138669","21/10/2016","Facilities Management","Hickman Avenue Depot","R2001"
"Wolverhampton City Council","http://opendatacommunities.org/id/metropolitan-district-council/wolverhampton","Hilton Main Construction Limited","28844","1,634.00","R&M - Departmental planned (external)","130138670","21/10/2016","Facilities Management","Culwell Street Depot","R2001"
"Wolverhampton City Council","http://opendatacommunities.org/id/metropolitan-district-council/wolverhampton","Hilton Main Construction Limited","28839","144.97","R&M - Departmental planned (external)","130138665","21/10/2016","Facilities Management","Parkfields Office Accomodation","R2001"
"Wolverhampton City Council","http://opendatacommunities.org/id/metropolitan-district-council/wolverhampton","Hilton Main Construction Limited","28842","490","R&M - Departmental planned (external)","130138668","21/10/2016","Facilities Management","Hickman Avenue Depot","R2001"
"Wolverhampton City Council","http://opendatacommunities.org/id/metropolitan-district-council/wolverhampton","Hilton Main Construction Limited","28841","370","R&M - Departmental planned (external)","130138667","21/10/2016","Cleaning","Priory Green","R2001"
"Wolverhampton City Council","http://opendatacommunities.org/id/metropolitan-district-council/wolverhampton","Hilton Main Construction Limited","28840","2,254.31","R&M - Departmental planned (external)","130138666","21/10/2016","Markets","Wholesale Market Facilities Management","R2001"
"Wolverhampton City Council","http://opendatacommunities.org/id/metropolitan-district-council/wolverhampton","Hilton Main Construction Limited","28891","1,625.00","Hire of Vehicles","190275278","14/10/2016","Fleet Services","Fleet Management","R3200"
"Wolverhampton City Council","http://opendatacommunities.org/id/metropolitan-district-council/wolverhampton","Hilton Main Construction Limited","28890","1,625.00","Hire of Vehicles","190275277","14/10/2016","Fleet Services","Fleet Management","R3200"
"Wolverhampton City Council","http://opendatacommunities.org/id/metropolitan-district-council/wolverhampton","Hilton Main Construction Limited","28816","3,511.19","R&M - Departmental planned (internal)","130138346","14/10/2016","Leisure Services","Central Baths","R2000"
"Wolverhampton City Council","http://opendatacommunities.org/id/metropolitan-district-council/wolverhampton","Hilton Main Construction Limited","28832","1,550.50","R&M - Departmental response (external)","130138353","14/10/2016","Highways Maintenance","Patching","R2003"
"Wolverhampton City Council","http://opendatacommunities.org/id/metropolitan-district-council/wolverhampton","Hilton Main Construction Limited","28833","1,940.00","R&M - Departmental response (external)","130138354","14/10/2016","Highways Maintenance","Patching","R2003"
"Wolverhampton City Council","http://opendatacommunities.org/id/metropolitan-district-council/wolverhampton","Hilton Main Construction Limited","28826","1,140.22","R&M - Departmental response (external)","130138347","14/10/2016","Highways Maintenance","Patching","R2003"
"Wolverhampton City Council","http://opendatacommunities.org/id/metropolitan-district-council/wolverhampton","Hilton Main Construction Limited","28831","1,575.00","R&M - Departmental response (external)","130138352","14/10/2016","Highways Maintenance","Patching","R2003"
"Wolverhampton City Council","http://opendatacommunities.org/id/metropolitan-district-council/wolverhampton","HMCTS","DAVIESA","400","Services - Fees and Charges","190272260","05/10/2016","Safeguarding","Court of Protection, Funerals and Protection of Property","R4401"
"Wolverhampton City Council","http://opendatacommunities.org/id/metropolitan-district-council/wolverhampton","Hollybush Nurseries Limited","IN252","125","Gratuities","130139749","07/10/2016","Democratic Services","Mayoral Expenses","R1402"
"Wolverhampton City Council","http://opendatacommunities.org/id/metropolitan-district-council/wolverhampton","Hometrack Date Systems (Hds) Limited","2394595","1,024.00","Computing - Maint Agreements","130137250","07/10/2016","School Planning & Resources","Pupil & Student Support","R4534"
"Wolverhampton City Council","http://opendatacommunities.org/id/metropolitan-district-council/wolverhampton","Horizon Care & Education Group Limited","5976","6,695.00","TPP - Independent Schools","130140289","12/10/2016","Standards and Vulnerable Pupils","SEN Education OOC","R5036"
"Wolverhampton City Council","http://opendatacommunities.org/id/metropolitan-district-council/wolverhampton","Horizon Care & Education Group Limited","6042","7,900.10","TPP - Independent Schools","130140291","12/10/2016","Standards and Vulnerable Pupils","SEN Education OOC","R5036"
"Wolverhampton City Council","http://opendatacommunities.org/id/metropolitan-district-council/wolverhampton","Horizon Care & Education Group Limited","6295","12,675.00","TPP - Independent Schools","130140293","12/10/2016","Standards and Vulnerable Pupils","SEN Education OOC","R5036"
"Wolverhampton City Council","http://opendatacommunities.org/id/metropolitan-district-council/wolverhampton","Horizon Care & Education Group Limited","5930","12,675.00","TPP - Independent Schools","130140555","12/10/2016","Standards and Vulnerable Pupils","SEN Education OOC","R5036"
"Wolverhampton City Council","http://opendatacommunities.org/id/metropolitan-district-council/wolverhampton","Horizon Care & Education Group Limited","5984","6,695.00","TPP - Independent Schools","130140557","12/10/2016","Standards and Vulnerable Pupils","SEN Education OOC","R5036"
"Wolverhampton City Council","http://opendatacommunities.org/id/metropolitan-district-council/wolverhampton","Horizon Care & Education Group Limited","6385","1,950.00","TPP - Independent Schools","130140802","14/10/2016","Standards and Vulnerable Pupils","SEN Education OOC","R5036"
"Wolverhampton City Council","http://opendatacommunities.org/id/metropolitan-district-council/wolverhampton","House Of Fraser","6893","135","Gratuities","130138547","07/10/2016","Democratic Services","Mayoral Expenses","R1402"
"Wolverhampton City Council","http://opendatacommunities.org/id/metropolitan-district-council/wolverhampton","House Of Fraser","6894","15","Gratuities","130138548","07/10/2016","Democratic Services","Mayoral Expenses","R1402"
"Wolverhampton City Council","http://opendatacommunities.org/id/metropolitan-district-council/wolverhampton","HS Sports Limited","117246","685","Equipment - Purchase","130141143","26/10/2016","Leisure Services","Central Baths","R4000"
"Wolverhampton City Council","http://opendatacommunities.org/id/metropolitan-district-council/wolverhampton","Human Tissue Authority","P03985","6,900.00","Services - General Licences","130137905","07/10/2016","Democratic Services","Coroners","R4402"
"Wolverhampton City Council","http://opendatacommunities.org/id/metropolitan-district-council/wolverhampton","Hydrodec (UK) Limited","67495","215","Cleaning Supplies and Materials","190274685","12/10/2016","Fleet Services","Fleet Management","R2705"
"Wolverhampton City Council","http://opendatacommunities.org/id/metropolitan-district-council/wolverhampton","Hydrodec (UK) Limited","69501","383.25","Cleaning Supplies and Materials","190274690","12/10/2016","Fleet Services","Fleet Management","R2705"
"Wolverhampton City Council","http://opendatacommunities.org/id/metropolitan-district-council/wolverhampton","Ian Livie","INV10289","1,080.00","Equipment - R & M","130137731","07/10/2016","Visitor Economy","Civic Halls Non-Direct Event Management Account","R4003"
"Wolverhampton City Council","http://opendatacommunities.org/id/metropolitan-district-council/wolverhampton","Ian Livie","INV10301","1,268.00","Equipment - Hire","130139030","26/10/2016","Visitor Economy","Civic Halls Non-Direct Event Management Account","R4001"
"Wolverhampton City Council","http://opendatacommunities.org/id/metropolitan-district-council/wolverhampton","Ian Livie","INV10298","150","Equipment - R & M","130138863","21/10/2016","Visitor Economy","Civic Halls Non-Direct Event Management Account","R4003"
"Wolverhampton City Council","http://opendatacommunities.org/id/metropolitan-district-council/wolverhampton","Ian Livie","INV10299","800","Equipment - Hire","130138864","21/10/2016","Visitor Economy","Civic Halls - CHIP","R4001"
"Wolverhampton City Council","http://opendatacommunities.org/id/metropolitan-district-council/wolverhampton","Idox Software Limited","7011933","5,100.00","Computing - Maint Agreements","130139909","26/10/2016","Licensing","Licensing - Private Hire Vehicles","R4534"
"Wolverhampton City Council","http://opendatacommunities.org/id/metropolitan-district-council/wolverhampton","Idox Software Limited","7011826","3,500.00","Computing - Maint Agreements","130140803","26/10/2016","ICTS","Strategic ICTS (ICT Service Budget)","R4534"
"Wolverhampton City Council","http://opendatacommunities.org/id/metropolitan-district-council/wolverhampton","Indo Lighting Limited","SAJ/2016/0916","2,888.79","Materials","130138272","14/10/2016","Street Lighting","Signs Illuminated","R4007"
"Wolverhampton City Council","http://opendatacommunities.org/id/metropolitan-district-council/wolverhampton","Initial Projects Limited T/A Enitial","72607","225","Services - Professional Fees","130140089","26/10/2016","Public Protection","Bowmans Harbour","R4400"
"Wolverhampton City Council","http://opendatacommunities.org/id/metropolitan-district-council/wolverhampton","Initial Washroom Solutions","32095935","3.47","Cleaning Supplies and Materials","130138962","05/10/2016","Environmental Maintenance","Ground Maintenance East","R2705"
"Wolverhampton City Council","http://opendatacommunities.org/id/metropolitan-district-council/wolverhampton","Initial Washroom Solutions","32095935","3.47","Cleaning Supplies and Materials","130138962","05/10/2016","Environmental Maintenance","Street Cleansing East","R2705"
"Wolverhampton City Council","http://opendatacommunities.org/id/metropolitan-district-council/wolverhampton","Initial Washroom Solutions","32111225","66.82","Cleaning Supplies and Materials","130137683","07/10/2016","Facilities Management","Culwell Street Depot","R2705"
"Wolverhampton City Council","http://opendatacommunities.org/id/metropolitan-district-council/wolverhampton","Initial Washroom Solutions","32075376","18.29","Cleaning Supplies and Materials","130133797","14/10/2016","Bereavement Services","Crematorium","R2705"
"Wolverhampton City Council","http://opendatacommunities.org/id/metropolitan-district-council/wolverhampton","Initial Washroom Solutions","32111223","18.29","Cleaning Supplies and Materials","130137681","14/10/2016","Bereavement Services","Crematorium","R2705"
"Wolverhampton City Council","http://opendatacommunities.org/id/metropolitan-district-council/wolverhampton","Integrated Water Services Limited","CD200019132","306.75","R&M - Departmental planned (external)","130139434","05/10/2016","Facilities Management","Civic Centre","R2001"
"Wolverhampton City Council","http://opendatacommunities.org/id/metropolitan-district-council/wolverhampton","Integrated Water Services Limited","CD200017785","1,341.00","R&M - Departmental planned (external)","130139431","05/10/2016","Facilities Management","Civic Centre","R2001"
"Wolverhampton City Council","http://opendatacommunities.org/id/metropolitan-district-council/wolverhampton","Integrated Water Services Limited","CD200019201","60","R&M - Departmental planned (external)","130139436","05/10/2016","Maintenance Programme","Centralised R&M","R2001"
"Wolverhampton City Council","http://opendatacommunities.org/id/metropolitan-district-council/wolverhampton","Integrated Water Services Limited","CD200019163","6,184.05","R&M - Departmental planned (external)","130139435","05/10/2016","Maintenance Programme","Centralised R&M","R2001"
"Wolverhampton City Council","http://opendatacommunities.org/id/metropolitan-district-council/wolverhampton","Integrated Water Services Limited","CD200019202","60","R&M - Departmental planned (external)","130139437","05/10/2016","Maintenance Programme","Centralised R&M","R2001"
"Wolverhampton City Council","http://opendatacommunities.org/id/metropolitan-district-council/wolverhampton","Integrated Water Services Limited","CD200019204","60","R&M - Departmental planned (external)","130139439","05/10/2016","Maintenance Programme","Centralised R&M","R2001"
"Wolverhampton City Council","http://opendatacommunities.org/id/metropolitan-district-council/wolverhampton","Integrated Water Services Limited","CD200018460","347.82","R&M - Departmental planned (external)","130139432","05/10/2016","Maintenance Programme","Centralised R&M","R2001"
"Wolverhampton City Council","http://opendatacommunities.org/id/metropolitan-district-council/wolverhampton","Integrated Water Services Limited","CD200018469","60","R&M - Departmental planned (external)","130139433","07/10/2016","Maintenance Programme","Centralised R&M","R2001"
"Wolverhampton City Council","http://opendatacommunities.org/id/metropolitan-district-council/wolverhampton","Integrated Water Services Limited","CD200021386","347.82","R&M - Departmental planned (external)","130141666","26/10/2016","Maintenance Programme","Centralised R&M","R2001"
"Wolverhampton City Council","http://opendatacommunities.org/id/metropolitan-district-council/wolverhampton","Integrated Water Services Limited","CD200021385","306.75","R&M - Departmental planned (external)","130141665","26/10/2016","Facilities Management","Civic Centre","R2001"
"Wolverhampton City Council","http://opendatacommunities.org/id/metropolitan-district-council/wolverhampton","Integrated Water Services Limited","CD200019142","998.75","R&M - Departmental planned (external)","130140137","12/10/2016","Facilities Management","Civic Centre","R2001"
"Wolverhampton City Council","http://opendatacommunities.org/id/metropolitan-district-council/wolverhampton","Integrated Water Services Limited","CD200020439","2,000.00","Construction and Conversion","130141664","28/10/2016","","Black Country Growth Deal � Cultural Programme","C1100"
"Wolverhampton City Council","http://opendatacommunities.org/id/metropolitan-district-council/wolverhampton","Integrated Water Services Limited","5135277","402.5","R&M - Departmental planned (external)","130123230","30/10/2016","Facilities Management","Civic Centre","R2001"
"Wolverhampton City Council","http://opendatacommunities.org/id/metropolitan-district-council/wolverhampton","Interclass PLC","10626","110,741.01","Construction and Conversion","130141597","19/10/2016","","Primary Expansion Programme","C1100"
"Wolverhampton City Council","http://opendatacommunities.org/id/metropolitan-district-council/wolverhampton","Interwaste Municipal Limitedc/O Fleet Ca","21664","500","Equipment - Purchase","190275274","14/10/2016","Fleet Services","Fleet Management","R4000"
"Wolverhampton City Council","http://opendatacommunities.org/id/metropolitan-district-council/wolverhampton","Interwaste Municipal Limitedc/O Fleet Ca","21664","3.12","Equipment - Purchase","190275274","14/10/2016","Fleet Services","Fleet Management","R4000"
"Wolverhampton City Council","http://opendatacommunities.org/id/metropolitan-district-council/wolverhampton","Intuitive Thinking Skills Ltd","11459","3,500.00","TPP - Public Health Contracts","130137495","07/10/2016","Contracts","Alcohol and Drug","R5060"
"Wolverhampton City Council","http://opendatacommunities.org/id/metropolitan-district-council/wolverhampton","Invasive Vegetation Management & Treatment Limited","3571","1,185.00","R&M - Departmental planned (external)","130133994","21/10/2016","School Planning & Resources","Other Support Services","R2001"
"Wolverhampton City Council","http://opendatacommunities.org/id/metropolitan-district-council/wolverhampton","Invasive Vegetation Management & Treatment Limited","3725","250","Services - Fees and Charges","130140745","14/10/2016","Housing Revenue Account","HRA General","R4401"
"Wolverhampton City Council","http://opendatacommunities.org/id/metropolitan-district-council/wolverhampton","IOSH Services Limited","IS L164200","300","Training Expenses","130138872","05/10/2016","Adult Education","Direct Delivery Team ( L.& D.)","R1650"
"Wolverhampton City Council","http://opendatacommunities.org/id/metropolitan-district-council/wolverhampton","J Edwards Glass","100339","4,492.00","R&M - Departmental planned (external)","130135596","12/10/2016","Maintenance Programme","Centralised R&M","R2001"
"Wolverhampton City Council","http://opendatacommunities.org/id/metropolitan-district-council/wolverhampton","J Edwards Glass","100438","85","R&M - Departmental planned (external)","130140204","12/10/2016","Facilities Management","Caretakers Community Centre","R2001"
"Wolverhampton City Council","http://opendatacommunities.org/id/metropolitan-district-council/wolverhampton","J Edwards Glass","100441","70.23","R&M - Departmental planned (external)","130140880","19/10/2016","Facilities Management","Management of Vacant Properties","R2001"
"Wolverhampton City Council","http://opendatacommunities.org/id/metropolitan-district-council/wolverhampton","J Edwards Glass","100196","248","R&M - Departmental planned (external)","130130511","28/10/2016","Facilities Management","Caretakers Community Centre","R2001"
"Wolverhampton City Council","http://opendatacommunities.org/id/metropolitan-district-council/wolverhampton","J Edwards Glass","100437","234","R&M - Departmental planned (external)","130139511","14/10/2016","Maintenance Programme","Centralised R&M","R2001"
"Wolverhampton City Council","http://opendatacommunities.org/id/metropolitan-district-council/wolverhampton","J Edwards Glass","100436","448","R&M - Departmental planned (external)","130139510","14/10/2016","Maintenance Programme","Centralised R&M","R2001"
"Wolverhampton City Council","http://opendatacommunities.org/id/metropolitan-district-council/wolverhampton","J P Lennard Limited","810642","104.4","Materials","130137862","07/10/2016","Leisure Services","Central Baths","R4007"
"Wolverhampton City Council","http://opendatacommunities.org/id/metropolitan-district-council/wolverhampton","J S Bassi T/A Penn Radio Cars","122","560","Client Transport","130141362","19/10/2016","School Planning & Resources","Home to College Transport","R3042"
"Wolverhampton City Council","http://opendatacommunities.org/id/metropolitan-district-council/wolverhampton","J S Bassi T/A Penn Radio Cars","123","732.8","Client Transport","130141365","19/10/2016","School Planning & Resources","Special - Transport","R3042"
"Wolverhampton City Council","http://opendatacommunities.org/id/metropolitan-district-council/wolverhampton","J S Bassi T/A Penn Radio Cars","124","111","Client Transport","130141366","19/10/2016","School Planning & Resources","Primary - Transport","R3042"
"Wolverhampton City Council","http://opendatacommunities.org/id/metropolitan-district-council/wolverhampton","Jack Moody Landscaping & Civil Engineering Limited","IN1269","76,547.46","Construction and Conversion","130140149","07/10/2016","","GF - Disposals Programme (Non-Strategic)","C1100"
"Wolverhampton City Council","http://opendatacommunities.org/id/metropolitan-district-council/wolverhampton","Jack Moody Landscaping & Civil Engineering Limited","IN1171","3,280.69","Construction and Conversion","130138429","19/10/2016","","GF - Leisure Centres Enhancement","C1100"
"Wolverhampton City Council","http://opendatacommunities.org/id/metropolitan-district-council/wolverhampton","Jackdaw (Tools) Limited","JV340591","245.35","Equipment - Purchase","190272286","05/10/2016","Fleet Services","Fleet Management","R4000"
"Wolverhampton City Council","http://opendatacommunities.org/id/metropolitan-district-council/wolverhampton","Jackdaw (Tools) Limited","JV340435","0.34","Equipment - Purchase","190272285","05/10/2016","Fleet Services","Fleet Management","R4000"
"Wolverhampton City Council","http://opendatacommunities.org/id/metropolitan-district-council/wolverhampton","Jackdaw (Tools) Limited","JV340866","3.12","Equipment - Purchase","190272287","05/10/2016","Fleet Services","Fleet Management","R4000"
"Wolverhampton City Council","http://opendatacommunities.org/id/metropolitan-district-council/wolverhampton","Jackdaw (Tools) Limited","JV343316","30.87","Equipment - Purchase","190274713","12/10/2016","Fleet Services","Fleet Management","R4000"
"Wolverhampton City Council","http://opendatacommunities.org/id/metropolitan-district-council/wolverhampton","Jackdaw (Tools) Limited","JV342575","15.39","Equipment - Purchase","190274712","12/10/2016","Fleet Services","Fleet Management","R4000"
"Wolverhampton City Council","http://opendatacommunities.org/id/metropolitan-district-council/wolverhampton","Jacobs U.K.Limited","81018000 - 200 - 048","2,153.92","Services - Professional Fees","130139660","26/10/2016","Estates and Valuations","Disposal Costs","R4400"
"Wolverhampton City Council","http://opendatacommunities.org/id/metropolitan-district-council/wolverhampton","Jacobs U.K.Limited","B1018000 - 200 - 041","5,508.50","Construction and Conversion","130139711","26/10/2016","","Bilston Urban Village","C1100"
"Wolverhampton City Council","http://opendatacommunities.org/id/metropolitan-district-council/wolverhampton","Jacobs U.K.Limited","B1018000 - 200 - 038","540","Services - Professional Fees","130139710","26/10/2016","Facilities Management","Management of Vacant Properties","R4400"
"Wolverhampton City Council","http://opendatacommunities.org/id/metropolitan-district-council/wolverhampton","Jacobs U.K.Limited","B1018000-200-040","1,111.04","Services - Professional Fees","130139721","26/10/2016","Maintenance Programme","Centralised R&M","R4400"
"Wolverhampton City Council","http://opendatacommunities.org/id/metropolitan-district-council/wolverhampton","Jacobs U.K.Limited","B1018000 200 049","1,016.25","Services - Professional Fees","130139718","26/10/2016","Corporate Asset Management","Strategic Asset Management Team","R4400"
"Wolverhampton City Council","http://opendatacommunities.org/id/metropolitan-district-council/wolverhampton","Jacobs U.K.Limited","B1018000 - 200 - 043","3,159.00","Services - Professional Fees","130139713","26/10/2016","Maintenance Programme","Centralised R&M","R4400"
"Wolverhampton City Council","http://opendatacommunities.org/id/metropolitan-district-council/wolverhampton","Jacobs U.K.Limited","B1018000 - 200 - 045","14,249.81","Services - Professional Fees","130139715","26/10/2016","Maintenance Programme","Centralised R&M","R4400"
"Wolverhampton City Council","http://opendatacommunities.org/id/metropolitan-district-council/wolverhampton","Jacobs U.K.Limited","B1018000 - 200 - 047","6,270.10","Services - Professional Fees","130139717","26/10/2016","City Development","City Development  - Core Team","R4400"
"Wolverhampton City Council","http://opendatacommunities.org/id/metropolitan-district-council/wolverhampton","Jacobs U.K.Limited","B1018000 - 200 - 007","398.25","Services - Professional Fees","130139685","26/10/2016","Estates and Valuations","Disposal Costs","R4400"
"Wolverhampton City Council","http://opendatacommunities.org/id/metropolitan-district-council/wolverhampton","Jacobs U.K.Limited","B1018000 - 200 - 005","326.5","Services - Professional Fees","130139683","26/10/2016","Estates and Valuations","Disposal Costs","R4400"
"Wolverhampton City Council","http://opendatacommunities.org/id/metropolitan-district-council/wolverhampton","Jacobs U.K.Limited","B1018000-200-039","480","Construction and Conversion","130139720","26/10/2016","","Decent Homes - Stock Improvements","C1100"
"Wolverhampton City Council","http://opendatacommunities.org/id/metropolitan-district-council/wolverhampton","Jacobs U.K.Limited","B1018000 - 200 - 010","1,523.20","Services - Professional Fees","130141052","26/10/2016","Adult Education","Central Costs","R4400"
"Wolverhampton City Council","http://opendatacommunities.org/id/metropolitan-district-council/wolverhampton","Jacobs U.K.Limited","B1018000 - 200 - 036","4,799.56","Services - Professional Fees","130139708","26/10/2016","Capital Programme","Capital programme Team - Wolverhampton Homes","R4400"
"Wolverhampton City Council","http://opendatacommunities.org/id/metropolitan-district-council/wolverhampton","Jacobs U.K.Limited","B1018000 - 200 - 042","1,423.52","Services - Professional Fees","130139712","26/10/2016","Facilities Management","Civic Centre","R4400"
"Wolverhampton City Council","http://opendatacommunities.org/id/metropolitan-district-council/wolverhampton","Jacobs U.K.Limited","B1018000 - 200 - 035","996.66","Construction and Conversion","130139707","26/10/2016","","Structural works","C1100"
"Wolverhampton City Council","http://opendatacommunities.org/id/metropolitan-district-council/wolverhampton","Jacobs U.K.Limited","B1018000 - 200 - 011","1,520.67","Construction and Conversion","130139956","26/10/2016","","Primary Expansion Programme","C1100"
"Wolverhampton City Council","http://opendatacommunities.org/id/metropolitan-district-council/wolverhampton","Jacobs U.K.Limited","B1018000 - 200 - 021","606.91","Services - Professional Fees","130139696","26/10/2016","Facilities Management","Culwell Street Depot","R4400"
"Wolverhampton City Council","http://opendatacommunities.org/id/metropolitan-district-council/wolverhampton","Jacobs U.K.Limited","B1018000 - 200 - 021","606.91","Services - Professional Fees","130139696","26/10/2016","Facilities Management","Hickman Avenue Depot","R4400"
"Wolverhampton City Council","http://opendatacommunities.org/id/metropolitan-district-council/wolverhampton","Jacobs U.K.Limited","B1018000 - 200 - 021","383.31","Services - Professional Fees","130139696","26/10/2016","Facilities Management","Bilston Town Hall","R4400"
"Wolverhampton City Council","http://opendatacommunities.org/id/metropolitan-district-council/wolverhampton","Jacobs U.K.Limited","B1018000 - 200 - 032","1,352.40","Construction and Conversion","130139705","26/10/2016","","Future Spaces","C1100"
"Wolverhampton City Council","http://opendatacommunities.org/id/metropolitan-district-council/wolverhampton","Jacobs U.K.Limited","B1018000 - 200 - 020","729.12","Services - Professional Fees","130139695","26/10/2016","Facilities Management","Management of Vacant Properties","R4400"
"Wolverhampton City Council","http://opendatacommunities.org/id/metropolitan-district-council/wolverhampton","Jacobs U.K.Limited","B1018000 - 200 - 018","2,018.07","Services - Professional Fees","130139693","26/10/2016","Estates and Valuations","Industrial Premises ; General","R4400"
"Wolverhampton City Council","http://opendatacommunities.org/id/metropolitan-district-council/wolverhampton","Jacobs U.K.Limited","81018000 - 200 - 012","272.7","Construction and Conversion","130139658","26/10/2016","","Primary Expansion Programme","C1100"
"Wolverhampton City Council","http://opendatacommunities.org/id/metropolitan-district-council/wolverhampton","Jacobs U.K.Limited","B1018000 - 200 - 003","3,745.18","Construction and Conversion","130139681","26/10/2016","","Primary Expansion Programme","C1100"
"Wolverhampton City Council","http://opendatacommunities.org/id/metropolitan-district-council/wolverhampton","Jacobs U.K.Limited","81018000 - 200 - 034","98.37","Construction and Conversion","130139659","26/10/2016","","Structural works","C1100"
"Wolverhampton City Council","http://opendatacommunities.org/id/metropolitan-district-council/wolverhampton","Jacobs U.K.Limited","B1018000 - 200 - 001","1,820.51","Construction and Conversion","130139679","26/10/2016","","Primary Expansion Programme","C1100"
"Wolverhampton City Council","http://opendatacommunities.org/id/metropolitan-district-council/wolverhampton","Jacobs U.K.Limited","B1018000 - 200 - 006","974.51","Construction and Conversion","130139684","26/10/2016","","Co-Location Programme","C1100"
"Wolverhampton City Council","http://opendatacommunities.org/id/metropolitan-district-council/wolverhampton","Jacobs U.K.Limited","B1018000 - 200 - 013","1,025.25","Services - Professional Fees","130139688","26/10/2016","Capital Programme","Capital programme Team - Wolverhampton Homes","R4400"
"Wolverhampton City Council","http://opendatacommunities.org/id/metropolitan-district-council/wolverhampton","Jacobs U.K.Limited","B1018000 - 200 - 009","394.25","Services - Professional Fees","130139687","26/10/2016","Estates and Valuations","Disposal Costs","R4400"
"Wolverhampton City Council","http://opendatacommunities.org/id/metropolitan-district-council/wolverhampton","Jacobs U.K.Limited","B1018000 - 200 - 008","371","Services - Professional Fees","130139686","26/10/2016","Estates and Valuations","Disposal Costs","R4400"
"Wolverhampton City Council","http://opendatacommunities.org/id/metropolitan-district-council/wolverhampton","Jacobs U.K.Limited","B1018000 - 200 - 016","7,181.01","Construction and Conversion","130139691","26/10/2016","","Decent Homes - Stock Improvements","C1100"
"Wolverhampton City Council","http://opendatacommunities.org/id/metropolitan-district-council/wolverhampton","Jacobs U.K.Limited","B1018000 - 200 - 026","8,000.00","Services - Professional Fees","130139700","26/10/2016","Capital Programme","Capital programme Team - Wolverhampton Homes","R4400"
"Wolverhampton City Council","http://opendatacommunities.org/id/metropolitan-district-council/wolverhampton","Jacobs U.K.Limited","B1018000 - 200 - 024","1,319.83","Construction and Conversion","130139698","26/10/2016","","Primary Expansion Programme","C1100"
"Wolverhampton City Council","http://opendatacommunities.org/id/metropolitan-district-council/wolverhampton","Jacobs U.K.Limited","B1018000 - 200 - 027","1,300.00","Construction and Conversion","130139701","26/10/2016","","Primary Expansion Programme","C1100"
"Wolverhampton City Council","http://opendatacommunities.org/id/metropolitan-district-council/wolverhampton","Jacobs U.K.Limited","B1018000 - 200 - 023","786.96","Services - Professional Fees","130139697","26/10/2016","School Planning & Resources","Building Schools for the Future (BSF)","R4400"
"Wolverhampton City Council","http://opendatacommunities.org/id/metropolitan-district-council/wolverhampton","Jacobs U.K.Limited","B1018000 - 200 - 017","29,311.20","Construction and Conversion","130139692","26/10/2016","","Decent Homes - Stock Improvements","C1100"
"Wolverhampton City Council","http://opendatacommunities.org/id/metropolitan-district-council/wolverhampton","James Lister & Sons Limited","0100/ 02634976","28.98","Protective Clothing","130138903","05/10/2016","Highways Maintenance","Patching","R4200"
"Wolverhampton City Council","http://opendatacommunities.org/id/metropolitan-district-council/wolverhampton","James Lister & Sons Limited","0100/ 02634984","492","Protective Clothing","130138910","05/10/2016","Environmental Maintenance","Ground Maintenance East","R4200"
"Wolverhampton City Council","http://opendatacommunities.org/id/metropolitan-district-council/wolverhampton","James Lister & Sons Limited","0100/ 02634985","32.32","Protective Clothing","130138911","05/10/2016","Facilities Management","Civic Centre","R4200"
"Wolverhampton City Council","http://opendatacommunities.org/id/metropolitan-district-council/wolverhampton","James Lister & Sons Limited","0100/ 02618999","314.64","Protective Clothing","130131554","05/10/2016","Environmental Maintenance","Ground Maintenance East","R4200"
"Wolverhampton City Council","http://opendatacommunities.org/id/metropolitan-district-council/wolverhampton","James Lister & Sons Limited","0100/ 02634981","57.96","Protective Clothing","130138908","05/10/2016","Highways Maintenance","Patching","R4200"
"Wolverhampton City Council","http://opendatacommunities.org/id/metropolitan-district-council/wolverhampton","James Lister & Sons Limited","0100/ 02634987","57.96","Protective Clothing","130138913","05/10/2016","Highways Maintenance","Patching","R4200"
"Wolverhampton City Council","http://opendatacommunities.org/id/metropolitan-district-council/wolverhampton","James Lister & Sons Limited","0100/ 02634979","497.1","Protective Clothing","130138906","05/10/2016","Highways Maintenance","Patching","R4200"
"Wolverhampton City Council","http://opendatacommunities.org/id/metropolitan-district-council/wolverhampton","James Lister & Sons Limited","0100/ 02634980","26.92","Protective Clothing","130138907","05/10/2016","Environmental Maintenance","Parks - Ranger Service","R4200"
"Wolverhampton City Council","http://opendatacommunities.org/id/metropolitan-district-council/wolverhampton","James Lister & Sons Limited","0100/ 02634990","79.75","Protective Clothing","130138916","05/10/2016","Cleaning","Cleaning of Buildings - General","R4200"
"Wolverhampton City Council","http://opendatacommunities.org/id/metropolitan-district-council/wolverhampton","James Lister & Sons Limited","0100/ 02632090","58","Protective Clothing","130137778","05/10/2016","Bereavement Services","Crematorium","R4200"
"Wolverhampton City Council","http://opendatacommunities.org/id/metropolitan-district-council/wolverhampton","James Lister & Sons Limited","0100/ 02634989","654.5","Protective Clothing","130138915","05/10/2016","Catering","Education Catering - General Overheads","R4200"
"Wolverhampton City Council","http://opendatacommunities.org/id/metropolitan-district-council/wolverhampton","James Lister & Sons Limited","0100/ 02634991","22.69","Protective Clothing","130138917","05/10/2016","Public Protection","EHTS Operational Costs","R4200"
"Wolverhampton City Council","http://opendatacommunities.org/id/metropolitan-district-council/wolverhampton","James Lister & Sons Limited","0100/ 02634975","58","Protective Clothing","130138902","05/10/2016","Highways Maintenance","Patching","R4200"
"Wolverhampton City Council","http://opendatacommunities.org/id/metropolitan-district-council/wolverhampton","James Lister & Sons Limited","0100/ 02634986","117.13","Clothing / Uniforms","130138912","05/10/2016","Customer Services","City Direct","R4201"
"Wolverhampton City Council","http://opendatacommunities.org/id/metropolitan-district-council/wolverhampton","James Lister & Sons Limited","0100/ 02634977","29.94","Cleaning Supplies and Materials","130138904","05/10/2016","Independent Living Service","Independent Living Service","R2705"
"Wolverhampton City Council","http://opendatacommunities.org/id/metropolitan-district-council/wolverhampton","James Lister & Sons Limited","240/02630674","205.8","Equipment - Purchase","190273395","07/10/2016","Fleet Services","Fleet Management","R4000"
"Wolverhampton City Council","http://opendatacommunities.org/id/metropolitan-district-council/wolverhampton","James Lister & Sons Limited","0100/ 02636774","108.3","Protective Clothing","130139521","07/10/2016","ICTS","Strategic ICTS (ICT Service Budget)","R4200"
"Wolverhampton City Council","http://opendatacommunities.org/id/metropolitan-district-council/wolverhampton","James Lister & Sons Limited","0100/ 02625480","9.85","Protective Clothing","130134774","07/10/2016","Cleaning","Cleaning of Buildings - General","R4200"
"Wolverhampton City Council","http://opendatacommunities.org/id/metropolitan-district-council/wolverhampton","James Lister & Sons Limited","0100/ 02639247","369.9","Protective Clothing","130140883","26/10/2016","ICTS","Strategic ICTS (ICT Service Budget)","R4200"
"Wolverhampton City Council","http://opendatacommunities.org/id/metropolitan-district-council/wolverhampton","James Lister & Sons Limited","0100/ 02639264","27.5","Protective Clothing","130140898","26/10/2016","ICTS","Strategic ICTS (ICT Service Budget)","R4200"
"Wolverhampton City Council","http://opendatacommunities.org/id/metropolitan-district-council/wolverhampton","James Lister & Sons Limited","0100/ 02641907","27.5","Protective Clothing","130141859","26/10/2016","ICTS","Strategic ICTS (ICT Service Budget)","R4200"
"Wolverhampton City Council","http://opendatacommunities.org/id/metropolitan-district-council/wolverhampton","James Lister & Sons Limited","0100/ 02640782","249.33","Equipment - R & M","130141853","26/10/2016","Visitor Economy","Civic Halls Non-Direct Event Management Account","R4003"
"Wolverhampton City Council","http://opendatacommunities.org/id/metropolitan-district-council/wolverhampton","James Lister & Sons Limited","0100/ 02641901","28.44","Protective Clothing","130141854","26/10/2016","Highways Maintenance","Patching","R4200"
"Wolverhampton City Council","http://opendatacommunities.org/id/metropolitan-district-council/wolverhampton","James Lister & Sons Limited","0100/ 02540946","37.5","Protective Clothing","130140747","26/10/2016","Housing","Private Sector Housing","R4200"
"Wolverhampton City Council","http://opendatacommunities.org/id/metropolitan-district-council/wolverhampton","James Lister & Sons Limited","0100/ 02540946","-37.5","Protective Clothing","130140747","26/10/2016","Housing","Private Sector Housing","R4200"
"Wolverhampton City Council","http://opendatacommunities.org/id/metropolitan-district-council/wolverhampton","James Lister & Sons Limited","0100/ 02540946","37.5","Protective Clothing","130140747","26/10/2016","Housing","Private Sector Housing","R4200"
"Wolverhampton City Council","http://opendatacommunities.org/id/metropolitan-district-council/wolverhampton","James Lister & Sons Limited","0100/ 02641921","68.04","Protective Clothing","130141873","26/10/2016","Highways Maintenance","Patching","R4200"
"Wolverhampton City Council","http://opendatacommunities.org/id/metropolitan-district-council/wolverhampton","James Lister & Sons Limited","0100/ 02641937","108","Protective Clothing","130141888","26/10/2016","Highways Maintenance","Patching","R4200"
"Wolverhampton City Council","http://opendatacommunities.org/id/metropolitan-district-council/wolverhampton","James Lister & Sons Limited","0100/ 02515173","120","Protective Clothing","130140746","26/10/2016","Facilities Management","Civic Centre","R4200"
"Wolverhampton City Council","http://opendatacommunities.org/id/metropolitan-district-council/wolverhampton","James Lister & Sons Limited","0100/ 02625477","196.65","Protective Clothing","130134771","26/10/2016","Environmental Maintenance","Ground Maintenance West","R4200"
"Wolverhampton City Council","http://opendatacommunities.org/id/metropolitan-district-council/wolverhampton","James Lister & Sons Limited","0100/ 02641927","26.95","Protective Clothing","130141878","26/10/2016","Environmental Maintenance","Ground Maintenance West","R4200"
"Wolverhampton City Council","http://opendatacommunities.org/id/metropolitan-district-council/wolverhampton","James Lister & Sons Limited","0100/ 02641925","256.1","Protective Clothing","130141876","26/10/2016","Environmental Maintenance","Parks - Ranger Service","R4200"
"Wolverhampton City Council","http://opendatacommunities.org/id/metropolitan-district-council/wolverhampton","James Lister & Sons Limited","0100/ 02641934","28.5","Protective Clothing","130141885","26/10/2016","ICTS","Strategic ICTS (ICT Service Budget)","R4200"
"Wolverhampton City Council","http://opendatacommunities.org/id/metropolitan-district-council/wolverhampton","James Lister & Sons Limited","0100/ 02639265","5.25","Protective Clothing","130140899","26/10/2016","ICTS","Strategic ICTS (ICT Service Budget)","R4200"
"Wolverhampton City Council","http://opendatacommunities.org/id/metropolitan-district-council/wolverhampton","James Lister & Sons Limited","0100/ 02639258","26.95","Protective Clothing","130140892","26/10/2016","ICTS","Strategic ICTS (ICT Service Budget)","R4200"
"Wolverhampton City Council","http://opendatacommunities.org/id/metropolitan-district-council/wolverhampton","James Lister & Sons Limited","0100/ 02641905","59.95","Protective Clothing","130141858","26/10/2016","Catering","Education Catering - General Overheads","R4200"
"Wolverhampton City Council","http://opendatacommunities.org/id/metropolitan-district-council/wolverhampton","James Lister & Sons Limited","0100/ 02641919","27.5","Protective Clothing","130141871","26/10/2016","Parking Services","School Crossing Patrol","R4200"
"Wolverhampton City Council","http://opendatacommunities.org/id/metropolitan-district-council/wolverhampton","James Lister & Sons Limited","0100/ 02641919","27.5","Protective Clothing","130141871","26/10/2016","Parking Services","Cycling Schemes - Training West Midlands","R4200"
"Wolverhampton City Council","http://opendatacommunities.org/id/metropolitan-district-council/wolverhampton","James Lister & Sons Limited","0100/ 02641917","340.16","Protective Clothing","130141869","26/10/2016","Cleaning","Cleaning of Buildings - General","R4200"
"Wolverhampton City Council","http://opendatacommunities.org/id/metropolitan-district-council/wolverhampton","James Lister & Sons Limited","0100/ 02641914","228","Protective Clothing","130141866","26/10/2016","Cleaning","Cleaning of Buildings - General","R4200"
"Wolverhampton City Council","http://opendatacommunities.org/id/metropolitan-district-council/wolverhampton","James Lister & Sons Limited","0100/ 02641923","223.55","Protective Clothing","130141875","26/10/2016","Catering","Education Catering - General Overheads","R4200"
"Wolverhampton City Council","http://opendatacommunities.org/id/metropolitan-district-council/wolverhampton","James Lister & Sons Limited","0100/ 02641920","97.95","Protective Clothing","130141872","26/10/2016","Parking Services","Parking Enforcement","R4200"
"Wolverhampton City Council","http://opendatacommunities.org/id/metropolitan-district-council/wolverhampton","James Lister & Sons Limited","0100/ 02641930","46.53","Protective Clothing","130141881","26/10/2016","Parking Services","Parking Enforcement","R4200"
"Wolverhampton City Council","http://opendatacommunities.org/id/metropolitan-district-council/wolverhampton","James Lister & Sons Limited","0100/ 02641936","57","Protective Clothing","130141887","26/10/2016","Cleaning","Cleaning of Buildings - General","R4200"
"Wolverhampton City Council","http://opendatacommunities.org/id/metropolitan-district-council/wolverhampton","James Lister & Sons Limited","0100/ 02641919","82.6","Protective Clothing","130141871","26/10/2016","Parking Services","Car Parks Operational Staff","R4200"
"Wolverhampton City Council","http://opendatacommunities.org/id/metropolitan-district-council/wolverhampton","James Lister & Sons Limited","0100/ 02641928","27.5","Protective Clothing","130141879","26/10/2016","Parking Services","Cycling Schemes - Training West Midlands","R4200"
"Wolverhampton City Council","http://opendatacommunities.org/id/metropolitan-district-council/wolverhampton","James Lister & Sons Limited","0100/ 02567534","79.5","Equipment - R & M","130141115","26/10/2016","Independent Living Service","Independent Living Service","R4003"
"Wolverhampton City Council","http://opendatacommunities.org/id/metropolitan-district-council/wolverhampton","James Lister & Sons Limited","0100/02598237","115.35","Equipment - R & M","130141120","26/10/2016","Independent Living Service","Independent Living Service","R4003"
"Wolverhampton City Council","http://opendatacommunities.org/id/metropolitan-district-council/wolverhampton","James Lister & Sons Limited","0100/ 02641903","136","Protective Clothing","130141856","26/10/2016","Fleet Services","Passenger Transport - General","R4200"
"Wolverhampton City Council","http://opendatacommunities.org/id/metropolitan-district-council/wolverhampton","James Lister & Sons Limited","0100/ 02641929","20.01","Protective Clothing","130141880","26/10/2016","Fleet Services","Passenger Transport - General","R4200"
"Wolverhampton City Council","http://opendatacommunities.org/id/metropolitan-district-council/wolverhampton","James Lister & Sons Limited","0100/ 02641933","36.19","Protective Clothing","130141884","26/10/2016","Fleet Services","Passenger Transport - General","R4200"
"Wolverhampton City Council","http://opendatacommunities.org/id/metropolitan-district-council/wolverhampton","James Lister & Sons Limited","0100/ 02579154","215.45","Equipment - R & M","130141116","26/10/2016","Independent Living Service","Independent Living Service","R4003"
"Wolverhampton City Council","http://opendatacommunities.org/id/metropolitan-district-council/wolverhampton","James Lister & Sons Limited","0100/02567535","91.06","Equipment - R & M","130141117","26/10/2016","Independent Living Service","Independent Living Service","R4003"
"Wolverhampton City Council","http://opendatacommunities.org/id/metropolitan-district-council/wolverhampton","James Lister & Sons Limited","0100/ 02641932","65.18","Protective Clothing","130141883","26/10/2016","School Planning & Resources","Special - Transport","R4200"
"Wolverhampton City Council","http://opendatacommunities.org/id/metropolitan-district-council/wolverhampton","James Lister & Sons Limited","0100/ 02636768","-9.1","Protective Clothing","130139515","12/10/2016","Parking Services","Car Parks Operational Staff","R4200"
"Wolverhampton City Council","http://opendatacommunities.org/id/metropolitan-district-council/wolverhampton","James Lister & Sons Limited","0100/ 02636769","-22.95","Protective Clothing","130139516","12/10/2016","Parking Services","Car Parks Operational Staff","R4200"
"Wolverhampton City Council","http://opendatacommunities.org/id/metropolitan-district-council/wolverhampton","James Lister & Sons Limited","0100/ 02608182","321.91","Protective Clothing","130126601","12/10/2016","Catering","Education Catering - General Overheads","R4200"
"Wolverhampton City Council","http://opendatacommunities.org/id/metropolitan-district-council/wolverhampton","James Lister & Sons Limited","0100/ 02636772","30.4","Protective Clothing","130139519","12/10/2016","Environmental Maintenance","Ground Maintenance West","R4200"
"Wolverhampton City Council","http://opendatacommunities.org/id/metropolitan-district-council/wolverhampton","James Lister & Sons Limited","0100/ 02636772","-30.4","Protective Clothing","130139519","12/10/2016","Environmental Maintenance","Ground Maintenance West","R4200"
"Wolverhampton City Council","http://opendatacommunities.org/id/metropolitan-district-council/wolverhampton","James Lister & Sons Limited","0100/ 02636772","30.4","Protective Clothing","130139519","12/10/2016","Environmental Maintenance","Ground Maintenance West","R4200"
"Wolverhampton City Council","http://opendatacommunities.org/id/metropolitan-district-council/wolverhampton","James Lister & Sons Limited","0100/ 02634978","147","Protective Clothing","130138905","12/10/2016","Environmental Maintenance","Ground Maintenance East","R4200"
"Wolverhampton City Council","http://opendatacommunities.org/id/metropolitan-district-council/wolverhampton","James Lister & Sons Limited","240/02633947","131.36","Equipment - Purchase","190274671","12/10/2016","Fleet Services","Fleet Management","R4000"
"Wolverhampton City Council","http://opendatacommunities.org/id/metropolitan-district-council/wolverhampton","James Lister & Sons Limited","240/02633950","117.22","Equipment - Purchase","190274674","12/10/2016","Fleet Services","Fleet Management","R4000"
"Wolverhampton City Council","http://opendatacommunities.org/id/metropolitan-district-council/wolverhampton","James Lister & Sons Limited","240/02633952","117.22","Equipment - Purchase","190274675","12/10/2016","Fleet Services","Fleet Management","R4000"
"Wolverhampton City Council","http://opendatacommunities.org/id/metropolitan-district-council/wolverhampton","James Lister & Sons Limited","0100/ 02641926","66.84","Protective Clothing","130141877","21/10/2016","Catering","Education Catering - General Overheads","R4200"
"Wolverhampton City Council","http://opendatacommunities.org/id/metropolitan-district-council/wolverhampton","James Lister & Sons Limited","0100/ 02641915","49.25","Protective Clothing","130141867","21/10/2016","Cleaning","Cleaning of Buildings - General","R4200"
"Wolverhampton City Council","http://opendatacommunities.org/id/metropolitan-district-council/wolverhampton","James Lister & Sons Limited","0100/ 02641922","35.63","Protective Clothing","130141874","21/10/2016","Independent Living Service","Independent Living Service","R4200"
"Wolverhampton City Council","http://opendatacommunities.org/id/metropolitan-district-council/wolverhampton","James Lister & Sons Limited","0100/ 02641913","7.66","Protective Clothing","130141865","21/10/2016","Catering","Education Catering - General Overheads","R4200"
"Wolverhampton City Council","http://opendatacommunities.org/id/metropolitan-district-council/wolverhampton","James Lister & Sons Limited","240/02633951","75.1","Equipment - Purchase","190277644","21/10/2016","Fleet Services","Fleet Management","R4000"
"Wolverhampton City Council","http://opendatacommunities.org/id/metropolitan-district-council/wolverhampton","James Lister & Sons Limited","0100/ 02641912","22.98","Protective Clothing","130141864","21/10/2016","Catering","Education Catering - General Overheads","R4200"
"Wolverhampton City Council","http://opendatacommunities.org/id/metropolitan-district-council/wolverhampton","James Lister & Sons Limited","0100/ 02641918","213.2","Protective Clothing","130141870","21/10/2016","Cleaning","Cleaning of Buildings - General","R4200"
"Wolverhampton City Council","http://opendatacommunities.org/id/metropolitan-district-council/wolverhampton","James Lister & Sons Limited","0100/ 02641916","323.4","Protective Clothing","130141868","21/10/2016","Catering","Education Catering - General Overheads","R4200"
"Wolverhampton City Council","http://opendatacommunities.org/id/metropolitan-district-council/wolverhampton","James Lister & Sons Limited","0100/02600116","60","Equipment - R & M","130141121","21/10/2016","Independent Living Service","Independent Living Service","R4003"
"Wolverhampton City Council","http://opendatacommunities.org/id/metropolitan-district-council/wolverhampton","James Lister & Sons Limited","0100/ 02636771","669.25","Protective Clothing","130139518","12/10/2016","Environmental Maintenance","Ground Maintenance East","R4200"
"Wolverhampton City Council","http://opendatacommunities.org/id/metropolitan-district-council/wolverhampton","James Lister & Sons Limited","240/02633948","97.38","Equipment - Purchase","190274672","12/10/2016","Fleet Services","Fleet Management","R4000"
"Wolverhampton City Council","http://opendatacommunities.org/id/metropolitan-district-council/wolverhampton","James Lister & Sons Limited","240/02633949","450.04","Equipment - Purchase","190274673","12/10/2016","Fleet Services","Fleet Management","R4000"
"Wolverhampton City Council","http://opendatacommunities.org/id/metropolitan-district-council/wolverhampton","James Lister & Sons Limited","100/02633944","15.28","Equipment - Purchase","190274648","12/10/2016","Fleet Services","Fleet Management","R4000"
"Wolverhampton City Council","http://opendatacommunities.org/id/metropolitan-district-council/wolverhampton","James Lister & Sons Limited","0100/ 02634983","9.1","Protective Clothing","130138909","12/10/2016","Parking Services","Car Parks Operational Staff","R4200"
"Wolverhampton City Council","http://opendatacommunities.org/id/metropolitan-district-council/wolverhampton","James Lister & Sons Limited","0100/ 02639269","53.9","Protective Clothing","130140903","19/10/2016","Environmental Maintenance","Ground Maintenance East","R4200"
"Wolverhampton City Council","http://opendatacommunities.org/id/metropolitan-district-council/wolverhampton","James Lister & Sons Limited","0100/ 02639256","107.8","Protective Clothing","130140890","19/10/2016","Environmental Maintenance","Ground Maintenance East","R4200"
"Wolverhampton City Council","http://opendatacommunities.org/id/metropolitan-district-council/wolverhampton","James Lister & Sons Limited","0100/ 02639260","55","Protective Clothing","130140894","19/10/2016","Environmental Maintenance","Parks - Ranger Service","R4200"
"Wolverhampton City Council","http://opendatacommunities.org/id/metropolitan-district-council/wolverhampton","James Lister & Sons Limited","0100/ 02557244","23.28","Cleaning Supplies and Materials","130141114","19/10/2016","Leisure Services","WV Active Catering","R2705"
"Wolverhampton City Council","http://opendatacommunities.org/id/metropolitan-district-council/wolverhampton","James Lister & Sons Limited","0100/02586377","31.56","Cleaning Supplies and Materials","130141119","19/10/2016","Leisure Services","WV Active Catering","R2705"
"Wolverhampton City Council","http://opendatacommunities.org/id/metropolitan-district-council/wolverhampton","James Lister & Sons Limited","0100/ 02639259","26.95","Protective Clothing","130140893","19/10/2016","Highways Maintenance","Patching","R4200"
"Wolverhampton City Council","http://opendatacommunities.org/id/metropolitan-district-council/wolverhampton","James Lister & Sons Limited","0100/ 02639267","53.9","Protective Clothing","130140901","19/10/2016","Environmental Maintenance","Ground Maintenance East","R4200"
"Wolverhampton City Council","http://opendatacommunities.org/id/metropolitan-district-council/wolverhampton","James Lister & Sons Limited","0100/ 02639268","53.9","Protective Clothing","130140902","19/10/2016","Environmental Maintenance","Ground Maintenance East","R4200"
"Wolverhampton City Council","http://opendatacommunities.org/id/metropolitan-district-council/wolverhampton","James Lister & Sons Limited","0100/ 02639263","4.18","Protective Clothing","130140897","19/10/2016","Highways Maintenance","Patching","R4200"
"Wolverhampton City Council","http://opendatacommunities.org/id/metropolitan-district-council/wolverhampton","James Lister & Sons Limited","0100/ 02639262","45.98","Protective Clothing","130140896","19/10/2016","Highways Maintenance","Patching","R4200"
"Wolverhampton City Council","http://opendatacommunities.org/id/metropolitan-district-council/wolverhampton","James Lister & Sons Limited","0100/ 02639253","161.7","Protective Clothing","130140888","19/10/2016","Environmental Maintenance","Ground Maintenance East","R4200"
"Wolverhampton City Council","http://opendatacommunities.org/id/metropolitan-district-council/wolverhampton","James Lister & Sons Limited","0100/ 02639249","58.5","Materials","130140884","19/10/2016","Facilities Management","Civic Centre","R4007"
"Wolverhampton City Council","http://opendatacommunities.org/id/metropolitan-district-council/wolverhampton","James Lister & Sons Limited","0100/ 02639270","115.54","Protective Clothing","130140904","19/10/2016","Facilities Management","Civic Centre","R4200"
"Wolverhampton City Council","http://opendatacommunities.org/id/metropolitan-district-council/wolverhampton","James Lister & Sons Limited","0100/ 02636770","29.25","Materials","130139517","19/10/2016","Facilities Management","Civic Centre","R4007"
"Wolverhampton City Council","http://opendatacommunities.org/id/metropolitan-district-council/wolverhampton","James Lister & Sons Limited","0100/ 02623510","69.28","Protective Clothing","130133907","28/10/2016","Environmental Maintenance","Ground Maintenance West","R4200"
"Wolverhampton City Council","http://opendatacommunities.org/id/metropolitan-district-council/wolverhampton","James Lister & Sons Limited","0100/ 02639257","80.85","Protective Clothing","130140891","28/10/2016","Environmental Maintenance","Ground Maintenance West","R4200"
"Wolverhampton City Council","http://opendatacommunities.org/id/metropolitan-district-council/wolverhampton","James Lister & Sons Limited","0100/ 02641908","53.9","Protective Clothing","130141860","28/10/2016","Environmental Maintenance","Ground Maintenance West","R4200"
"Wolverhampton City Council","http://opendatacommunities.org/id/metropolitan-district-council/wolverhampton","James Lister & Sons Limited","240/02633946","148.12","Equipment - Purchase","190275276","14/10/2016","Fleet Services","Fleet Management","R4000"
"Wolverhampton City Council","http://opendatacommunities.org/id/metropolitan-district-council/wolverhampton","James Lister & Sons Limited","240/02633945","99.27","Equipment - Purchase","190275275","14/10/2016","Fleet Services","Fleet Management","R4000"
"Wolverhampton City Council","http://opendatacommunities.org/id/metropolitan-district-council/wolverhampton","James Lister & Sons Limited","0100/ 02572906","41.79","Equipment - R & M","130140748","14/10/2016","Independent Living Service","Independent Living Service","R4003"
"Wolverhampton City Council","http://opendatacommunities.org/id/metropolitan-district-council/wolverhampton","James Lister & Sons Limited","0100/ 02639250","222.14","Protective Clothing","130140885","14/10/2016","Catering","Education Catering - General Overheads","R4200"
"Wolverhampton City Council","http://opendatacommunities.org/id/metropolitan-district-council/wolverhampton","James Lister & Sons Limited","0100/ 02639252","26.95","Protective Clothing","130140887","14/10/2016","Markets","Wholesale Market Facilities Management","R4200"
"Wolverhampton City Council","http://opendatacommunities.org/id/metropolitan-district-council/wolverhampton","James Lister & Sons Limited","0100/ 02639266","12.5","Protective Clothing","130140900","14/10/2016","Catering","Education Catering - General Overheads","R4200"
"Wolverhampton City Council","http://opendatacommunities.org/id/metropolitan-district-council/wolverhampton","James Lister & Sons Limited","0100/ 02639254","1,001.04","Protective Clothing","130140889","14/10/2016","Catering","Education Catering - General Overheads","R4200"
"Wolverhampton City Council","http://opendatacommunities.org/id/metropolitan-district-council/wolverhampton","Jct Consultancy Limited","Ml 995","345","Computing - Purchase of Hardware","130141086","14/10/2016","Transportation","Transportation General","R4530"
"Wolverhampton City Council","http://opendatacommunities.org/id/metropolitan-district-council/wolverhampton","Jenx Limited","201961","1,645.60","Equipment - Purchase","130137803","07/10/2016","Independent Living Service","Independent Living Service","R4000"
"Wolverhampton City Council","http://opendatacommunities.org/id/metropolitan-district-council/wolverhampton","Jenx Limited","202030","2,028.70","Equipment - Purchase","130138507","14/10/2016","Independent Living Service","Independent Living Service","R4000"
"Wolverhampton City Council","http://opendatacommunities.org/id/metropolitan-district-council/wolverhampton","JLA Limited","OP/1931102","140","Service Charges","130139765","21/10/2016","Learning Disability Provider","Ernest Bold Court","R2205"
"Wolverhampton City Council","http://opendatacommunities.org/id/metropolitan-district-council/wolverhampton","Johal Dairies Limited","778357","-0.68","Provisions (Not for resale)","130137082","05/10/2016","Older People Provider Services","Blakenhall Resource Centre","R4101"
"Wolverhampton City Council","http://opendatacommunities.org/id/metropolitan-district-council/wolverhampton","Johal Dairies Limited","5620082016","877.52","Provisions (Resale)","130139158","05/10/2016","Catering","Civic Centre Catering","R4102"
"Wolverhampton City Council","http://opendatacommunities.org/id/metropolitan-district-council/wolverhampton","Johal Dairies Limited","778193","23.22","Provisions (Not for resale)","130139608","07/10/2016","Older People Provider Services","Blakenhall Resource Centre","R4101"
"Wolverhampton City Council","http://opendatacommunities.org/id/metropolitan-district-council/wolverhampton","Johal Dairies Limited","5466082016","138.31","Provisions (Not for resale)","130138825","26/10/2016","Leisure Services","WV Active Catering","R4101"
"Wolverhampton City Council","http://opendatacommunities.org/id/metropolitan-district-council/wolverhampton","Johal Dairies Limited","6525082016","93.53","Provisions (Not for resale)","130138827","26/10/2016","Leisure Services","WV Active Catering","R4101"
"Wolverhampton City Council","http://opendatacommunities.org/id/metropolitan-district-council/wolverhampton","Johal Dairies Limited","795364","21.19","Provisions (Resale)","130139640","26/10/2016","Learning Disability Provider","Duke Street Bungalows","R4102"
"Wolverhampton City Council","http://opendatacommunities.org/id/metropolitan-district-council/wolverhampton","Johal Dairies Limited","795366","36.24","Provisions (Resale)","130139642","26/10/2016","Learning Disability Provider","Duke Street Bungalows","R4102"
"Wolverhampton City Council","http://opendatacommunities.org/id/metropolitan-district-council/wolverhampton","Johal Dairies Limited","795365","25.19","Provisions (Resale)","130139641","26/10/2016","Learning Disability Provider","Duke Street Bungalows","R4102"
"Wolverhampton City Council","http://opendatacommunities.org/id/metropolitan-district-council/wolverhampton","Johal Dairies Limited","795359","32.63","Provisions (Not for resale)","130139636","26/10/2016","Visitor Economy","Art Gallery Tea Room","R4101"
"Wolverhampton City Council","http://opendatacommunities.org/id/metropolitan-district-council/wolverhampton","Johal Dairies Limited","795360","83.89","Provisions (Not for resale)","130139637","26/10/2016","Visitor Economy","Bantock - Tea Rooms","R4101"
"Wolverhampton City Council","http://opendatacommunities.org/id/metropolitan-district-council/wolverhampton","Johal Dairies Limited","795348","128.07","Provisions (Resale)","130139635","26/10/2016","Older People Provider Services","Bradley Lodge Resource Centre","R4102"
"Wolverhampton City Council","http://opendatacommunities.org/id/metropolitan-district-council/wolverhampton","Johal Dairies Limited","778189","16.12","Provisions (Resale)","130139605","12/10/2016","Learning Disability Provider","Duke Street Bungalows","R4102"
"Wolverhampton City Council","http://opendatacommunities.org/id/metropolitan-district-council/wolverhampton","Johal Dairies Limited","778191","45.07","Provisions (Resale)","130139607","12/10/2016","Learning Disability Provider","Duke Street Bungalows","R4102"
"Wolverhampton City Council","http://opendatacommunities.org/id/metropolitan-district-council/wolverhampton","Johal Dairies Limited","781999","24.67","Provisions (Resale)","130139614","12/10/2016","Learning Disability Provider","Duke Street Bungalows","R4102"
"Wolverhampton City Council","http://opendatacommunities.org/id/metropolitan-district-council/wolverhampton","Johal Dairies Limited","781998","18.82","Provisions (Resale)","130139613","12/10/2016","Learning Disability Provider","Duke Street Bungalows","R4102"
"Wolverhampton City Council","http://opendatacommunities.org/id/metropolitan-district-council/wolverhampton","Johal Dairies Limited","786326","25.19","Provisions (Resale)","130139623","12/10/2016","Learning Disability Provider","Duke Street Bungalows","R4102"
"Wolverhampton City Council","http://opendatacommunities.org/id/metropolitan-district-council/wolverhampton","Johal Dairies Limited","786327","36.24","Provisions (Resale)","130139624","12/10/2016","Learning Disability Provider","Duke Street Bungalows","R4102"
"Wolverhampton City Council","http://opendatacommunities.org/id/metropolitan-district-council/wolverhampton","Johal Dairies Limited","782000","45.07","Provisions (Resale)","130139615","12/10/2016","Learning Disability Provider","Duke Street Bungalows","R4102"
"Wolverhampton City Council","http://opendatacommunities.org/id/metropolitan-district-council/wolverhampton","Johal Dairies Limited","786325","21.19","Provisions (Resale)","130139622","12/10/2016","Learning Disability Provider","Duke Street Bungalows","R4102"
"Wolverhampton City Council","http://opendatacommunities.org/id/metropolitan-district-council/wolverhampton","Johal Dairies Limited","5620102015","501.48","Provisions (Resale)","130121846","31/10/2016","Catering","Civic Centre Catering","R4102"
"Wolverhampton City Council","http://opendatacommunities.org/id/metropolitan-district-council/wolverhampton","Johal Dairies Limited","778184","17.34","Provisions (Not for resale)","130139601","12/10/2016","Visitor Economy","Art Gallery Tea Room","R4101"
